BODY,BODY NAME,ENTRY DATE,POSTING DATE,TRANSACTION NUMBER,THEIR REF,AMOUNT,SUPPLIER NAME,SUPPLIER CODE,EXPENSE AREA,EXPENSE TYPE,EXPENSE CODE
http://statistics.data.gov.uk/id/local-authority/12UE,Huntingdonshire District Council,07/06/2017,07/06/2017,211159,195874,"169,723.23",CAMBRIDGE CITY COUNCIL,CR017896,Building Control Other,Client Contracts,779
http://statistics.data.gov.uk/id/local-authority/12UE,Huntingdonshire District Council,07/06/2017,07/06/2017,211159,195874,"126,577.18",CAMBRIDGE CITY COUNCIL,CR017896,Building Control Other,Client Contracts,779
http://statistics.data.gov.uk/id/local-authority/12UE,Huntingdonshire District Council,13/06/2017,13/06/2017,211540,LEVY 2017-18,"206,829.00",MIDDLE LEVEL COMMISSIONERS,CR000552,Internal Drainage Boards,Levies,861
http://statistics.data.gov.uk/id/local-authority/12UE,Huntingdonshire District Council,14/06/2017,14/06/2017,211008,2983,"70,737.03",BURMOR CONSTRUCTION,CR032423,Ol Hdon Changing Facilities,Building Mtce,303
http://statistics.data.gov.uk/id/local-authority/12UE,Huntingdonshire District Council,07/06/2017,08/06/2017,211134,6003568293,"67,038.00",CAPITA BUSINESS SERVICES LTD,CR410639,Scdc Recharge Invoices,Software,206
http://statistics.data.gov.uk/id/local-authority/12UE,Huntingdonshire District Council,07/06/2017,07/06/2017,211156,195878,"61,809.00",CAMBRIDGE CITY COUNCIL,CR017896,Central Services M Us,Client Contracts,779
http://statistics.data.gov.uk/id/local-authority/12UE,Huntingdonshire District Council,13/06/2017,13/06/2017,612608,AE01 2017-18,"58,751.00",ALCONBURY & ELLINGTON IDB,CR000220,Internal Drainage Boards,Levies,861
http://statistics.data.gov.uk/id/local-authority/12UE,Huntingdonshire District Council,28/06/2017,28/06/2017,212291,PROFORMA 28211,"54,000.00",BIRKETTS LLP,CR479106,Leisure Centres Capital,Building Construction,300
http://statistics.data.gov.uk/id/local-authority/12UE,Huntingdonshire District Council,21/06/2017,21/06/2017,211989,1111472311,"48,871.35",DELOITTE LLP,CR400573,Dc Application Processing,Consultants,711
http://statistics.data.gov.uk/id/local-authority/12UE,Huntingdonshire District Council,12/06/2017,12/06/2017,211461,8095279,"27,197.37",CERTAS ENERGY T/A PACE FUELCARE,CR455975,Stock And Work In Progress,Stock Purchases,980
http://statistics.data.gov.uk/id/local-authority/12UE,Huntingdonshire District Council,21/06/2017,22/06/2017,212002,1546113,"24,000.00",EUROPEAN ELECTRONIQUE LTD,CR424036,Telephone Upgrade,Consultants,711
http://statistics.data.gov.uk/id/local-authority/12UE,Huntingdonshire District Council,21/06/2017,22/06/2017,212005,INV-0400,"21,140.64",AGILE APPLICATIONS,CR424777,Ccity Recharge Invoices,Software,206
http://statistics.data.gov.uk/id/local-authority/12UE,Huntingdonshire District Council,01/06/2017,01/06/2017,210722,ASI39446,"20,183.55",AMEYCESPA (EAST) LTD,CR127636,Recycling,Recycling Collections,747
http://statistics.data.gov.uk/id/local-authority/12UE,Huntingdonshire District Council,28/06/2017,29/06/2017,212394,ASI41970,"19,686.30",AMEYCESPA (EAST) LTD,CR127636,Recycling,Recycling Collections,747
http://statistics.data.gov.uk/id/local-authority/12UE,Huntingdonshire District Council,07/06/2017,07/06/2017,211151,SM/60,"15,726.00",SUTTON AND MEPAL DRAINAGE BRD,CR000771,Internal Drainage Boards,Levies,861
http://statistics.data.gov.uk/id/local-authority/12UE,Huntingdonshire District Council,22/06/2017,22/06/2017,212019,SI33147,"13,395.60",SSI SCHAEFER LTD,CR407190,Recycling Equipment Capital,Recycling Bins,525
http://statistics.data.gov.uk/id/local-authority/12UE,Huntingdonshire District Council,22/06/2017,22/06/2017,212020,INV000006191,"13,369.50",EGBERT H TAYLOR AND CO LTD,CR004818,Recycling Equipment Capital,Recycling Bins,525
http://statistics.data.gov.uk/id/local-authority/12UE,Huntingdonshire District Council,15/06/2017,15/06/2017,211674,90426973,"12,960.00",ADVANTAGE RESOURCING,CR424715,Imd Shared Service,Hired Staff,100
http://statistics.data.gov.uk/id/local-authority/12UE,Huntingdonshire District Council,07/06/2017,07/06/2017,211168,REDACTED,"12,779.00",REDACTED,CR423371,Improvement Grants,Mandatory Grants,801
http://statistics.data.gov.uk/id/local-authority/12UE,Huntingdonshire District Council,20/06/2017,20/06/2017,612794,R4/60,"12,540.00",RAMSEY FOURTH MIDDLEMOOR IDB,CR028692,Internal Drainage Boards,Levies,861
http://statistics.data.gov.uk/id/local-authority/12UE,Huntingdonshire District Council,20/06/2017,22/06/2017,211426,HDC004,"12,505.67",ASEPTIKA LTD,CR424671,One Leisure Active Lifestyles,Equipment,500
http://statistics.data.gov.uk/id/local-authority/12UE,Huntingdonshire District Council,01/06/2017,08/06/2017,210992,468,"12,475.00",NO 5 CHAMBERS,CR422757,Dc Application Processing,Consultants,711
http://statistics.data.gov.uk/id/local-authority/12UE,Huntingdonshire District Council,02/06/2017,02/06/2017,210983,7082,"12,400.00",DOBSON UK LLP,CR423450,Street Cleaning,Subcontractors,777
http://statistics.data.gov.uk/id/local-authority/12UE,Huntingdonshire District Council,21/06/2017,21/06/2017,212001,430881,"5,600.00",OVE ARUP & PARTNERS INTERNATIONAL,CR423984,Local Development Framework,Consultants,711
http://statistics.data.gov.uk/id/local-authority/12UE,Huntingdonshire District Council,21/06/2017,21/06/2017,212001,430881,"5,854.00",OVE ARUP & PARTNERS INTERNATIONAL,CR423984,Local Development Framework,Consultants,711
http://statistics.data.gov.uk/id/local-authority/12UE,Huntingdonshire District Council,27/06/2017,27/06/2017,212207,RC-HDC012,"10,780.00",RENT CONNECT,CR424138,Homelessness Management,Bed & Breakfast Payment,818
http://statistics.data.gov.uk/id/local-authority/12UE,Huntingdonshire District Council,13/06/2017,13/06/2017,211539,LEVY 2017-18,"10,660.00",BLUNTISHAM IDB,CR000302,Internal Drainage Boards,Levies,861
http://statistics.data.gov.uk/id/local-authority/12UE,Huntingdonshire District Council,27/06/2017,27/06/2017,211506,AC0214237,"10,504.49",ASHCO BUILDING & MAINTENANCE SERVICES LTD,CR422300,Improvement Grants,Mandatory Grants,801
http://statistics.data.gov.uk/id/local-authority/12UE,Huntingdonshire District Council,27/06/2017,28/06/2017,212256,4792,"10,500.00",THE INFORMATION LAB,CR423551,One Leisure Corporate Mgt,Licences,730
http://statistics.data.gov.uk/id/local-authority/12UE,Huntingdonshire District Council,19/06/2017,20/06/2017,211882,10736197,"10,400.00",CAMBRIDGESHIRE COUNTY COUNCIL,CR006678,Housing Strategy,Contribution (Paid Out),810
http://statistics.data.gov.uk/id/local-authority/12UE,Huntingdonshire District Council,07/06/2017,08/06/2017,211133,6659,"9,767.00",ENFORCE TECHNOLOGY,CR424742,Scdc Recharge Invoices,Software,206
http://statistics.data.gov.uk/id/local-authority/12UE,Huntingdonshire District Council,07/06/2017,08/06/2017,211132,2017132,"9,510.00",MODERN MINDSET LTD,CR482623,Scdc Recharge Invoices,Software,206
http://statistics.data.gov.uk/id/local-authority/12UE,Huntingdonshire District Council,05/06/2017,05/06/2017,210990,1111472051,"8,861.25",DELOITTE LLP,CR400573,Project Contributions,Subcontractors,777
http://statistics.data.gov.uk/id/local-authority/12UE,Huntingdonshire District Council,28/06/2017,30/06/2017,212292,1000107,"8,700.00",EAST OF ENGLAND LGA,CR422620,Corporate Committees,Corporate Subscriptions,754
http://statistics.data.gov.uk/id/local-authority/12UE,Huntingdonshire District Council,14/06/2017,14/06/2017,211406,RC-HDC011,"8,653.00",RENT CONNECT,CR424138,Homelessness Management,Bed & Breakfast Payment,818
http://statistics.data.gov.uk/id/local-authority/12UE,Huntingdonshire District Council,15/06/2017,15/06/2017,211839,65912,"8,391.29",HAVEN POWER LTD,CR455940,Pathfinder House Site,Electricity,420
http://statistics.data.gov.uk/id/local-authority/12UE,Huntingdonshire District Council,15/06/2017,15/06/2017,211683,WN70312958,"8,325.58",CAPITA RESOURCING LTD,CR030165,Imd Shared Service,Hired Staff,100
http://statistics.data.gov.uk/id/local-authority/12UE,Huntingdonshire District Council,12/06/2017,12/06/2017,211022,9054492428,"1,250.02",ROYAL MAIL,CR027083,Document Centre,Postage,231
http://statistics.data.gov.uk/id/local-authority/12UE,Huntingdonshire District Council,12/06/2017,12/06/2017,211022,9054492428,"5,859.53",ROYAL MAIL,CR027083,Elections,Postage,231
http://statistics.data.gov.uk/id/local-authority/12UE,Huntingdonshire District Council,12/06/2017,12/06/2017,211022,9054492428,343.69,ROYAL MAIL,CR027083,Electoral Registration,Postage,231
http://statistics.data.gov.uk/id/local-authority/12UE,Huntingdonshire District Council,15/06/2017,15/06/2017,211843,65914,"7,451.67",HAVEN POWER LTD,CR455940,One Leisure St Neots,Electricity,420
http://statistics.data.gov.uk/id/local-authority/12UE,Huntingdonshire District Council,27/06/2017,28/06/2017,212026,1020,"7,450.00",MIRAMAR ENGINEERING LTD,CR424694,Leisure Centres Capital,Building Mtce,303
http://statistics.data.gov.uk/id/local-authority/12UE,Huntingdonshire District Council,14/06/2017,14/06/2017,612613,106 FUNDS,"6,987.50",EARITH PARISH COUNCIL,CR002454,S106 Agreements,Contribution (Paid Out),810
http://statistics.data.gov.uk/id/local-authority/12UE,Huntingdonshire District Council,14/06/2017,14/06/2017,211405,RC-HDC010,"6,880.00",RENT CONNECT,CR424138,Homelessness Management,Bed & Breakfast Payment,818
http://statistics.data.gov.uk/id/local-authority/12UE,Huntingdonshire District Council,14/06/2017,14/06/2017,211584,5519,"6,750.00",AUTEC TRAINING  LTD,CR487235,Human Resources,Training,130
http://statistics.data.gov.uk/id/local-authority/12UE,Huntingdonshire District Council,12/06/2017,12/06/2017,211448,35253,"6,394.00",F S TRAILERS AND TOWBAR CENTRE,CR409236,Vehicles & Plant Capital,Vehicles Purchased,600
http://statistics.data.gov.uk/id/local-authority/12UE,Huntingdonshire District Council,28/06/2017,29/06/2017,212321,ISL141276,"6,390.00",QA LIMITED,CR479791,Imd Shared Service,Training,130
http://statistics.data.gov.uk/id/local-authority/12UE,Huntingdonshire District Council,09/06/2017,09/06/2017,211376,328503102,"6,197.42",ANGLIAN WATER,CR000071,One Leisure St Neots,Water & Sewerage,432
http://statistics.data.gov.uk/id/local-authority/12UE,Huntingdonshire District Council,22/06/2017,22/06/2017,212038,U001496,"6,012.50",TECHNOLOGY ONE LTD,CR424111,Financial Mgt System Replacmnt,Software,206
http://statistics.data.gov.uk/id/local-authority/12UE,Huntingdonshire District Council,19/06/2017,20/06/2017,211883,S085063085,"5,914.00",STANNAH LTD Ref(20HU025),CR000759,Improvement Grants,Mandatory Grants,801
http://statistics.data.gov.uk/id/local-authority/12UE,Huntingdonshire District Council,07/06/2017,07/06/2017,210995,530611,"5,679.60",BSG PROPERTY SERVICES LTD,CR089905,Improvement Grants,Mandatory Grants,801
http://statistics.data.gov.uk/id/local-authority/12UE,Huntingdonshire District Council,15/06/2017,15/06/2017,211840,95919,"5,678.21",HAVEN POWER LTD,CR455940,One Leisure St Ives,Electricity,420
http://statistics.data.gov.uk/id/local-authority/12UE,Huntingdonshire District Council,12/06/2017,14/06/2017,211496,9416,"5,384.54",PRESERVED TIMBER PRODUCTS,CR424782,Countryside,Materials,550
http://statistics.data.gov.uk/id/local-authority/12UE,Huntingdonshire District Council,23/06/2017,29/06/2017,212258,SIN083916,"5,367.87",QUADRANT SECURITY GROUP,CR027775,Cctv Shared Service,Equipment Maintenance,511
http://statistics.data.gov.uk/id/local-authority/12UE,Huntingdonshire District Council,07/06/2017,08/06/2017,211135,932469-080A,526.08,VIRGIN MEDIA BUSINESS/CPSN,CR455148,Cctv Shared Service,I T Line Rental,248
http://statistics.data.gov.uk/id/local-authority/12UE,Huntingdonshire District Council,07/06/2017,08/06/2017,211135,932469-080A,"4,841.64",VIRGIN MEDIA BUSINESS/CPSN,CR455148,Imd Shared Service,I T Line Rental,248
http://statistics.data.gov.uk/id/local-authority/12UE,Huntingdonshire District Council,01/06/2017,12/06/2017,210701,IN16PS17002494,"2,926.95",WHISTL UK LTD,CR424061,Council Tax,Postage,231
http://statistics.data.gov.uk/id/local-authority/12UE,Huntingdonshire District Council,01/06/2017,12/06/2017,210701,IN16PS17002494,734.73,WHISTL UK LTD,CR424061,Document Centre,Postage,231
http://statistics.data.gov.uk/id/local-authority/12UE,Huntingdonshire District Council,01/06/2017,12/06/2017,210701,IN16PS17002494,258.61,WHISTL UK LTD,CR424061,Domestic Refuse,Postage,231
http://statistics.data.gov.uk/id/local-authority/12UE,Huntingdonshire District Council,01/06/2017,12/06/2017,210701,IN16PS17002494,789.15,WHISTL UK LTD,CR424061,Electoral Registration,Postage,231
http://statistics.data.gov.uk/id/local-authority/12UE,Huntingdonshire District Council,01/06/2017,12/06/2017,210701,IN16PS17002494,417.55,WHISTL UK LTD,CR424061,Housing  Benefits Admin,Postage,231
http://statistics.data.gov.uk/id/local-authority/12UE,Huntingdonshire District Council,23/06/2017,29/06/2017,212180,4872,"5,000.00",CAMBRIDGESHIRE & PETERBOROUGH FIRE AUTHORITY,CR405440,Emergency Planning,Contribution (Paid Out),810
http://statistics.data.gov.uk/id/local-authority/12UE,Huntingdonshire District Council,22/06/2017,22/06/2017,211967,1111473876,"4,860.86",DELOITTE LLP,CR400573,Local Development Framework,Consultants,711
http://statistics.data.gov.uk/id/local-authority/12UE,Huntingdonshire District Council,06/06/2017,08/06/2017,612352,982784,"4,860.00",BUCKDEN  VILLAGE  HALL TRUST,CR084532,Dc Application Processing,Hire Of Rooms,411
http://statistics.data.gov.uk/id/local-authority/12UE,Huntingdonshire District Council,07/06/2017,07/06/2017,211166,AC214243,"4,827.61",ASHCO BUILDING & MAINTENANCE SERVICES LTD,CR422300,Improvement Grants,Mandatory Grants,801
http://statistics.data.gov.uk/id/local-authority/12UE,Huntingdonshire District Council,07/06/2017,08/06/2017,211139,7016073,800,IDOX,CR481134,Hdc Recharge Invoices,Software,206
http://statistics.data.gov.uk/id/local-authority/12UE,Huntingdonshire District Council,07/06/2017,08/06/2017,211139,7016073,"4,000.00",IDOX,CR481134,Hdc Recharge Invoices,Software,206
http://statistics.data.gov.uk/id/local-authority/12UE,Huntingdonshire District Council,07/06/2017,07/06/2017,211003,598,"4,788.00",B P MORSE,CR030128,Improvement Grants,Mandatory Grants,801
http://statistics.data.gov.uk/id/local-authority/12UE,Huntingdonshire District Council,07/06/2017,07/06/2017,207347,1560,"4,743.00",HD PROPERTY SERVICES,CR422148,Improvement Grants,Mandatory Grants,801
http://statistics.data.gov.uk/id/local-authority/12UE,Huntingdonshire District Council,28/06/2017,29/06/2017,212396,10732920,"4,602.27",CAMBRIDGESHIRE COUNTY COUNCIL,CR006678,Trade Refuse,Waste Disposal,763
http://statistics.data.gov.uk/id/local-authority/12UE,Huntingdonshire District Council,14/06/2017,14/06/2017,211190,399,"4,500.00",E J ENVIRONMENTAL DESIGN LTD,CR424005,Leisure Centres Capital,Building Mtce,303
http://statistics.data.gov.uk/id/local-authority/12UE,Huntingdonshire District Council,21/06/2017,22/06/2017,212004,SIN104685,"4,496.00",EACS LTD,CR404499,Scdc Recharge Invoices,Other I T Hardware,203
http://statistics.data.gov.uk/id/local-authority/12UE,Huntingdonshire District Council,07/06/2017,07/06/2017,211167,3976,"4,410.00",ACCESS & AUTOMATION LTD,CR423434,Improvement Grants,Mandatory Grants,801
http://statistics.data.gov.uk/id/local-authority/12UE,Huntingdonshire District Council,09/06/2017,09/06/2017,211378,8055862050,"4,401.30",ANGLIAN WATER,CR000071,One Leisure Huntingdon,Water & Sewerage,432
http://statistics.data.gov.uk/id/local-authority/12UE,Huntingdonshire District Council,12/06/2017,14/06/2017,211337,27577,113,M & N VEHICLE SERVICES,CR480661,Recycling,Vehicle Mot,622
http://statistics.data.gov.uk/id/local-authority/12UE,Huntingdonshire District Council,12/06/2017,14/06/2017,211337,27577,"4,272.39",M & N VEHICLE SERVICES,CR480661,Recycling,Vehicle Parts & Fittings,625
http://statistics.data.gov.uk/id/local-authority/12UE,Huntingdonshire District Council,07/06/2017,07/06/2017,210344,IN0599982,"4,351.71",STAFFLINE GROUP,CR416827,Domestic Refuse,Hired Staff,100
http://statistics.data.gov.uk/id/local-authority/12UE,Huntingdonshire District Council,19/06/2017,20/06/2017,210997,599,"4,340.00",B P MORSE,CR030128,Improvement Grants,Mandatory Grants,801
http://statistics.data.gov.uk/id/local-authority/12UE,Huntingdonshire District Council,07/06/2017,07/06/2017,210314,530810,"4,298.00",BSG PROPERTY SERVICES LTD,CR089905,Improvement Grants,Mandatory Grants,801
http://statistics.data.gov.uk/id/local-authority/12UE,Huntingdonshire District Council,07/06/2017,07/06/2017,211110,5062,"4,281.56",C3S PROJECTS LIMITED,CR424786,Improvement Grants,Mandatory Grants,801
http://statistics.data.gov.uk/id/local-authority/12UE,Huntingdonshire District Council,21/06/2017,22/06/2017,211998,90428996,"4,185.00",ADVANTAGE RESOURCING,CR424715,Imd Shared Service,Hired Staff,100
http://statistics.data.gov.uk/id/local-authority/12UE,Huntingdonshire District Council,07/06/2017,07/06/2017,211157,195878,"4,124.33",CAMBRIDGE CITY COUNCIL,CR017896,Central Services M Us,Costs Recovered,A04
http://statistics.data.gov.uk/id/local-authority/12UE,Huntingdonshire District Council,16/06/2017,16/06/2017,211874,193916,"4,112.90",CAMBRIDGE CITY COUNCIL,CR017896,Central Services M Us,Legal Fees,729
http://statistics.data.gov.uk/id/local-authority/12UE,Huntingdonshire District Council,22/06/2017,22/06/2017,211519,IN0601287,"4,110.09",STAFFLINE GROUP,CR416827,Domestic Refuse,Hired Staff,100
http://statistics.data.gov.uk/id/local-authority/12UE,Huntingdonshire District Council,22/06/2017,22/06/2017,211525,IN0602887,"4,070.38",STAFFLINE GROUP,CR416827,Domestic Refuse,Hired Staff,100
http://statistics.data.gov.uk/id/local-authority/12UE,Huntingdonshire District Council,20/06/2017,20/06/2017,612793,CH/60,"4,052.00",CONINGTON & HOLME IDB,CR028696,Internal Drainage Boards,Levies,861
http://statistics.data.gov.uk/id/local-authority/12UE,Huntingdonshire District Council,19/06/2017,20/06/2017,211885,AC0214236,"4,016.55",ASHCO BUILDING & MAINTENANCE SERVICES LTD,CR422300,Improvement Grants,Mandatory Grants,801
http://statistics.data.gov.uk/id/local-authority/12UE,Huntingdonshire District Council,07/06/2017,07/06/2017,211091,1,"1,000.00",KOM,CR424784,One Leisure Huntingdon,Advertising/Promoting Services,255
http://statistics.data.gov.uk/id/local-authority/12UE,Huntingdonshire District Council,07/06/2017,07/06/2017,211091,1,500,KOM,CR424784,One Leisure Ramsey,Advertising/Promoting Services,255
http://statistics.data.gov.uk/id/local-authority/12UE,Huntingdonshire District Council,07/06/2017,07/06/2017,211091,1,500,KOM,CR424784,One Leisure Sawtry,Advertising/Promoting Services,255
http://statistics.data.gov.uk/id/local-authority/12UE,Huntingdonshire District Council,07/06/2017,07/06/2017,211091,1,"1,000.00",KOM,CR424784,One Leisure St Ives,Advertising/Promoting Services,255
http://statistics.data.gov.uk/id/local-authority/12UE,Huntingdonshire District Council,07/06/2017,07/06/2017,211091,1,"1,000.00",KOM,CR424784,One Leisure St Neots,Advertising/Promoting Services,255
http://statistics.data.gov.uk/id/local-authority/12UE,Huntingdonshire District Council,28/06/2017,29/06/2017,211641,15750,"3,955.80",JADE SECURITY SERVICES LTD,CR422256,Off Street Parking,Cash Collection,702
http://statistics.data.gov.uk/id/local-authority/12UE,Huntingdonshire District Council,22/06/2017,22/06/2017,211531,IN0604032,"3,943.92",STAFFLINE GROUP,CR416827,Domestic Refuse,Hired Staff,100
http://statistics.data.gov.uk/id/local-authority/12UE,Huntingdonshire District Council,07/06/2017,07/06/2017,211164,530615,"3,885.00",BSG PROPERTY SERVICES LTD,CR089905,Improvement Grants,Mandatory Grants,801
http://statistics.data.gov.uk/id/local-authority/12UE,Huntingdonshire District Council,15/06/2017,15/06/2017,211838,65916,"3,866.46",HAVEN POWER LTD,CR455940,One Leisure Huntingdon,Electricity,420
http://statistics.data.gov.uk/id/local-authority/12UE,Huntingdonshire District Council,22/06/2017,22/06/2017,211532,IN0604030,"3,802.91",STAFFLINE GROUP,CR416827,Recycling,Hired Staff,100
http://statistics.data.gov.uk/id/local-authority/12UE,Huntingdonshire District Council,07/06/2017,07/06/2017,210743,IN20518,"3,680.00",AIRQUEE LTD,CR416900,One Leisure St Ives,Equipment,500
http://statistics.data.gov.uk/id/local-authority/12UE,Huntingdonshire District Council,15/06/2017,15/06/2017,211694,51112,"3,673.67",ADVANTAGE RESOURCING,CR424715,Imd Shared Service,Hired Staff,100
http://statistics.data.gov.uk/id/local-authority/12UE,Huntingdonshire District Council,28/06/2017,28/06/2017,212297,INV-002067,"3,600.00",MAGENTA COACHING SOLUTIONS,CR480942,Housing  Benefits Admin,Government Grants,B50
http://statistics.data.gov.uk/id/local-authority/12UE,Huntingdonshire District Council,01/06/2017,01/06/2017,210742,273302I,"1,247.75",A C COMMERCIALS,CR000141,Domestic Refuse,Vehicle Parts & Fittings,625
http://statistics.data.gov.uk/id/local-authority/12UE,Huntingdonshire District Council,01/06/2017,01/06/2017,210742,273302I,71.3,A C COMMERCIALS,CR000141,Fleet Management,Vehicle Parts & Fittings,625
http://statistics.data.gov.uk/id/local-authority/12UE,Huntingdonshire District Council,01/06/2017,01/06/2017,210742,273302I,819.95,A C COMMERCIALS,CR000141,Grounds Maintenance,Vehicle Parts & Fittings,625
http://statistics.data.gov.uk/id/local-authority/12UE,Huntingdonshire District Council,01/06/2017,01/06/2017,210742,273302I,534.75,A C COMMERCIALS,CR000141,Recycling,Vehicle Parts & Fittings,625
http://statistics.data.gov.uk/id/local-authority/12UE,Huntingdonshire District Council,01/06/2017,01/06/2017,210742,273302I,891.25,A C COMMERCIALS,CR000141,Street Cleaning,Vehicle Parts & Fittings,625
http://statistics.data.gov.uk/id/local-authority/12UE,Huntingdonshire District Council,13/06/2017,13/06/2017,612609,348,"3,551.73",ST NEOTS TOWN COUNCIL,CR002483,Customer Service Centres,Service Charges,412
http://statistics.data.gov.uk/id/local-authority/12UE,Huntingdonshire District Council,08/06/2017,08/06/2017,211193,116752,"3,519.99",RIDGE AND PARTNERS LLP,CR424653,Industrial Properties,Consultants,711
http://statistics.data.gov.uk/id/local-authority/12UE,Huntingdonshire District Council,07/06/2017,08/06/2017,211124,WN70314207,"3,500.00",CAPITA RESOURCING LTD,CR030165,Imd Shared Service,Hired Staff,100
http://statistics.data.gov.uk/id/local-authority/12UE,Huntingdonshire District Council,07/06/2017,08/06/2017,211141,SI-2518,"1,159.28",AGILE APPLICATIONS,CR424777,Scdc Recharge Invoices,Software,206
http://statistics.data.gov.uk/id/local-authority/12UE,Huntingdonshire District Council,07/06/2017,08/06/2017,211141,SI-2518,"2,318.53",AGILE APPLICATIONS,CR424777,Scdc Recharge Invoices,Software,206
http://statistics.data.gov.uk/id/local-authority/12UE,Huntingdonshire District Council,13/06/2017,13/06/2017,612610,349,"3,393.44",ST NEOTS TOWN COUNCIL,CR002483,Customer Service Centres,Service Charges,412
http://statistics.data.gov.uk/id/local-authority/12UE,Huntingdonshire District Council,08/06/2017,08/06/2017,210660,PSLSI1642,"3,380.00",PROJECT SOLUTION  LTD,CR455836,Imd Shared Service,Training,130
http://statistics.data.gov.uk/id/local-authority/12UE,Huntingdonshire District Council,15/06/2017,15/06/2017,211844,12489090950,"3,343.05",E-ON ENERGY,CR416430,One Leisure St Ives,Gas,421
http://statistics.data.gov.uk/id/local-authority/12UE,Huntingdonshire District Council,07/06/2017,07/06/2017,210345,IN0599980,"3,253.42",STAFFLINE GROUP,CR416827,Recycling,Hired Staff,100
http://statistics.data.gov.uk/id/local-authority/12UE,Huntingdonshire District Council,28/06/2017,29/06/2017,212320,82076,"3,243.36",UNINTERRUPTIBLE POWER SUPPLIES LTD,CR424763,Hdc Recharge Invoices,Equipment Maintenance,511
http://statistics.data.gov.uk/id/local-authority/12UE,Huntingdonshire District Council,14/06/2017,14/06/2017,211550,617002,"3,200.00",LEISURE INNOVATIONS LIMITED,CR422869,Leisure Centres Capital,Building Mtce,303
http://statistics.data.gov.uk/id/local-authority/12UE,Huntingdonshire District Council,19/06/2017,20/06/2017,211884,S085062369,"3,179.00",STANNAH LTD Ref(20HU025),CR000759,Improvement Grants,Mandatory Grants,801
http://statistics.data.gov.uk/id/local-authority/12UE,Huntingdonshire District Council,22/06/2017,22/06/2017,211527,IN0602885,"3,150.62",STAFFLINE GROUP,CR416827,Recycling,Hired Staff,100
http://statistics.data.gov.uk/id/local-authority/12UE,Huntingdonshire District Council,02/06/2017,02/06/2017,210966,1007598757,"3,146.00",HAYS,CR423917,Chief Executive & Comt,Hired Staff,100
http://statistics.data.gov.uk/id/local-authority/12UE,Huntingdonshire District Council,15/06/2017,15/06/2017,211841,65924,"3,113.83",HAVEN POWER LTD,CR455940,E F H And Depots,Electricity,420
http://statistics.data.gov.uk/id/local-authority/12UE,Huntingdonshire District Council,01/06/2017,12/06/2017,210700,IN16PS17002712,834.36,WHISTL UK LTD,CR424061,Council Tax,Postage,231
http://statistics.data.gov.uk/id/local-authority/12UE,Huntingdonshire District Council,01/06/2017,12/06/2017,210700,IN16PS17002712,"1,264.53",WHISTL UK LTD,CR424061,Document Centre,Postage,231
http://statistics.data.gov.uk/id/local-authority/12UE,Huntingdonshire District Council,01/06/2017,12/06/2017,210700,IN16PS17002712,791.76,WHISTL UK LTD,CR424061,Electoral Registration,Postage,231
http://statistics.data.gov.uk/id/local-authority/12UE,Huntingdonshire District Council,01/06/2017,12/06/2017,210700,IN16PS17002712,208.22,WHISTL UK LTD,CR424061,Housing  Benefits Admin,Postage,231
http://statistics.data.gov.uk/id/local-authority/12UE,Huntingdonshire District Council,09/06/2017,09/06/2017,211388,11043726,"3,056.68",DENNIS EAGLE LTD,CR000200,Domestic Refuse,Vehicle Parts & Fittings,625
http://statistics.data.gov.uk/id/local-authority/12UE,Huntingdonshire District Council,22/06/2017,22/06/2017,211534,IN0604031,"3,056.19",STAFFLINE GROUP,CR416827,Domestic Refuse,Hired Staff,100
http://statistics.data.gov.uk/id/local-authority/12UE,Huntingdonshire District Council,07/06/2017,07/06/2017,211165,SIN122954,"3,036.44",PRINCEBUILD LTD,CR000645,Improvement Grants,Mandatory Grants,801
http://statistics.data.gov.uk/id/local-authority/12UE,Huntingdonshire District Council,07/06/2017,07/06/2017,612347,282,"1,355.00",COACH & HORSES,CR410824,Homelessness Management,Bed & Breakfast Payment,818
http://statistics.data.gov.uk/id/local-authority/12UE,Huntingdonshire District Council,07/06/2017,07/06/2017,612347,282,"1,650.00",COACH & HORSES,CR410824,Homelessness Management,Bed & Breakfast Payment,818
http://statistics.data.gov.uk/id/local-authority/12UE,Huntingdonshire District Council,29/06/2017,29/06/2017,212261,SIN084074,"3,000.50",QUADRANT SECURITY GROUP,CR027775,Cctv Shared Service,Equipment Maintenance,511
http://statistics.data.gov.uk/id/local-authority/12UE,Huntingdonshire District Council,07/06/2017,07/06/2017,211001,S29886,"3,000.00",BSG PROPERTY SERVICES LTD,CR089905,Improvement Grants,Mandatory Grants,801
http://statistics.data.gov.uk/id/local-authority/12UE,Huntingdonshire District Council,28/06/2017,29/06/2017,212333,125022,"3,000.00",IT TALENT SOLUTIONS LTD,CR482676,Imd Shared Service,Hired Staff,100
http://statistics.data.gov.uk/id/local-authority/12UE,Huntingdonshire District Council,02/06/2017,02/06/2017,210981,V15097/81/93,"2,980.00",CAMLINE CAMBRIDGE LIMITED,CR405367,Off Street Parking,Sitework,359
http://statistics.data.gov.uk/id/local-authority/12UE,Huntingdonshire District Council,22/06/2017,22/06/2017,211927,101893,237.22,BANDVULC TRUCK TYRES,CR406810,Domestic Refuse,Tyres,630
http://statistics.data.gov.uk/id/local-authority/12UE,Huntingdonshire District Council,22/06/2017,22/06/2017,211927,101893,"1,276.18",BANDVULC TRUCK TYRES,CR406810,Domestic Refuse,Tyres,630
http://statistics.data.gov.uk/id/local-authority/12UE,Huntingdonshire District Council,22/06/2017,22/06/2017,211927,101893,"1,462.45",BANDVULC TRUCK TYRES,CR406810,Recycling,Tyres,630
http://statistics.data.gov.uk/id/local-authority/12UE,Huntingdonshire District Council,22/06/2017,22/06/2017,211523,IN0601286,"2,942.89",STAFFLINE GROUP,CR416827,Domestic Refuse,Hired Staff,100
http://statistics.data.gov.uk/id/local-authority/12UE,Huntingdonshire District Council,20/06/2017,21/06/2017,211893,211687030,"2,885.67",SWALEC,CR407130,Housing Services Other,Electricity,420
http://statistics.data.gov.uk/id/local-authority/12UE,Huntingdonshire District Council,20/06/2017,21/06/2017,211957,481686634,"2,885.67",SWALEC,CR407130,Housing Services Other,Electricity,420
http://statistics.data.gov.uk/id/local-authority/12UE,Huntingdonshire District Council,13/06/2017,13/06/2017,211504,1007619301,"2,860.00",HAYS,CR423917,Chief Executive & Comt,Hired Staff,100
http://statistics.data.gov.uk/id/local-authority/12UE,Huntingdonshire District Council,07/06/2017,07/06/2017,211024,S085064188,"2,849.00",STANNAH LTD Ref(20HU025),CR000759,Improvement Grants,Mandatory Grants,801
http://statistics.data.gov.uk/id/local-authority/12UE,Huntingdonshire District Council,27/06/2017,27/06/2017,212191,SIBN122959,"2,842.78",PRINCEBUILD LTD,CR000645,Improvement Grants,Mandatory Grants,801
http://statistics.data.gov.uk/id/local-authority/12UE,Huntingdonshire District Council,14/06/2017,14/06/2017,612590,283,"2,785.00",COACH & HORSES,CR410824,Homelessness Management,Bed & Breakfast Payment,818
http://statistics.data.gov.uk/id/local-authority/12UE,Huntingdonshire District Council,20/06/2017,20/06/2017,612783,284,"2,775.00",COACH & HORSES,CR410824,Homelessness Management,Bed & Breakfast Payment,818
http://statistics.data.gov.uk/id/local-authority/12UE,Huntingdonshire District Council,07/06/2017,07/06/2017,211002,1490028,"2,702.99",AKW MEDICARE LTD,CR403559,Improvement Grants,Mandatory Grants,801
http://statistics.data.gov.uk/id/local-authority/12UE,Huntingdonshire District Council,09/06/2017,09/06/2017,211403,172392,"2,683.87",HUNTINGDON TIMBER SUPPLIES,CR415663,Countryside,Materials,550
http://statistics.data.gov.uk/id/local-authority/12UE,Huntingdonshire District Council,15/06/2017,15/06/2017,211672,R021584,"2,675.00",PREMIER IT RECRUITMENT LTD,CR454029,Imd Shared Service,Hired Staff,100
http://statistics.data.gov.uk/id/local-authority/12UE,Huntingdonshire District Council,21/06/2017,22/06/2017,211997,R021735,"2,675.00",PREMIER IT RECRUITMENT LTD,CR454029,Imd Shared Service,Hired Staff,100
http://statistics.data.gov.uk/id/local-authority/12UE,Huntingdonshire District Council,28/06/2017,29/06/2017,212341,125289,"2,625.00",IT TALENT SOLUTIONS LTD,CR482676,Imd Shared Service,Hired Staff,100
http://statistics.data.gov.uk/id/local-authority/12UE,Huntingdonshire District Council,28/06/2017,29/06/2017,212346,125237,"2,625.00",IT TALENT SOLUTIONS LTD,CR482676,Imd Shared Service,Hired Staff,100
http://statistics.data.gov.uk/id/local-authority/12UE,Huntingdonshire District Council,07/06/2017,07/06/2017,210761,9502236824,"2,605.00",JOHNSON HEALTH TECH UK LTD,CR423485,One Leisure St Ives,Equipment,500
http://statistics.data.gov.uk/id/local-authority/12UE,Huntingdonshire District Council,21/06/2017,22/06/2017,211654,9502236826,"2,605.00",JOHNSON HEALTH TECH UK LTD,CR423485,One Leisure Huntingdon,Equipment,500
http://statistics.data.gov.uk/id/local-authority/12UE,Huntingdonshire District Council,21/06/2017,22/06/2017,211699,9502236835,"2,605.00",JOHNSON HEALTH TECH UK LTD,CR423485,One Leisure St Neots,Equipment,500
http://statistics.data.gov.uk/id/local-authority/12UE,Huntingdonshire District Council,22/06/2017,22/06/2017,211529,IN0602886,"2,603.30",STAFFLINE GROUP,CR416827,Domestic Refuse,Hired Staff,100
http://statistics.data.gov.uk/id/local-authority/12UE,Huntingdonshire District Council,07/06/2017,07/06/2017,211158,1007606380,"2,600.00",HAYS,CR423917,Property Development And Mgt,Hired Staff,100
http://statistics.data.gov.uk/id/local-authority/12UE,Huntingdonshire District Council,15/06/2017,15/06/2017,211679,WN70312959,"2,588.19",CAPITA RESOURCING LTD,CR030165,Imd Shared Service,Hired Staff,100
http://statistics.data.gov.uk/id/local-authority/12UE,Huntingdonshire District Council,27/06/2017,27/06/2017,212211,74562,"1,200.00",MACDONALD & COMPANY FREELANCE LTD,CR424684,Property Development And Mgt,Hired Staff,100
http://statistics.data.gov.uk/id/local-authority/12UE,Huntingdonshire District Council,27/06/2017,27/06/2017,212211,74562,"1,350.00",MACDONALD & COMPANY FREELANCE LTD,CR424684,Property Development And Mgt,Hired Staff,100
http://statistics.data.gov.uk/id/local-authority/12UE,Huntingdonshire District Council,07/06/2017,07/06/2017,211000,5197366,"2,549.00",PRISM MEDICAL UK,CR480892,Improvement Grants,Mandatory Grants,801
http://statistics.data.gov.uk/id/local-authority/12UE,Huntingdonshire District Council,15/06/2017,15/06/2017,211842,65922,"2,545.79",HAVEN POWER LTD,CR455940,One Leisure St Ives,Electricity,420
http://statistics.data.gov.uk/id/local-authority/12UE,Huntingdonshire District Council,27/06/2017,28/06/2017,212245,2635,"2,527.76",FLEXEREFRIGERATION LTD,CR422336,Leisure Centres Capital,Building Mtce,303
http://statistics.data.gov.uk/id/local-authority/12UE,Huntingdonshire District Council,05/06/2017,08/06/2017,211120,5243,"2,515.00",ADAMS AUTOS,CR422066,Licences,Vehicle Inspection,618
http://statistics.data.gov.uk/id/local-authority/12UE,Huntingdonshire District Council,21/06/2017,22/06/2017,211968,17-05-000005257,"2,500.00",CUSHMAN & WAKEFIELD,CR424152,Local Development Framework,Consultants,711
http://statistics.data.gov.uk/id/local-authority/12UE,Huntingdonshire District Council,22/06/2017,22/06/2017,212041,U001437,"2,450.00",TECHNOLOGY ONE LTD,CR424111,Financial Mgt System Replacmnt,Software,206
http://statistics.data.gov.uk/id/local-authority/12UE,Huntingdonshire District Council,26/06/2017,26/06/2017,212188,ARNK/99042232,"2,420.00",ADVANCED BUSINESS SOLUTIONS,CR032921,Financial Services Mus,Consultants,711
http://statistics.data.gov.uk/id/local-authority/12UE,Huntingdonshire District Council,27/06/2017,27/06/2017,212193,602,"2,400.00",B P MORSE,CR030128,Improvement Grants,Mandatory Grants,801
http://statistics.data.gov.uk/id/local-authority/12UE,Huntingdonshire District Council,28/06/2017,29/06/2017,212347,125276,"2,400.00",IT TALENT SOLUTIONS LTD,CR482676,Imd Shared Service,Hired Staff,100
http://statistics.data.gov.uk/id/local-authority/12UE,Huntingdonshire District Council,20/06/2017,20/06/2017,211952,9801,"2,386.00",ROGER WILSON ELECTRONICS,CR028041,Pathfinder House Site,Building Mtce,303
http://statistics.data.gov.uk/id/local-authority/12UE,Huntingdonshire District Council,12/06/2017,14/06/2017,211338,2923,"2,380.00",REFUSE VEHICLE SOLUTIONS LTD,CR424740,Domestic Refuse,Vehicle Hire,607
http://statistics.data.gov.uk/id/local-authority/12UE,Huntingdonshire District Council,27/06/2017,28/06/2017,212263,IN16PS17003134,"1,412.71",WHISTL UK LTD,CR424061,Council Tax,Postage,231
http://statistics.data.gov.uk/id/local-authority/12UE,Huntingdonshire District Council,27/06/2017,28/06/2017,212263,IN16PS17003134,629.85,WHISTL UK LTD,CR424061,Document Centre,Postage,231
http://statistics.data.gov.uk/id/local-authority/12UE,Huntingdonshire District Council,27/06/2017,28/06/2017,212263,IN16PS17003134,132.27,WHISTL UK LTD,CR424061,Electoral Registration,Postage,231
http://statistics.data.gov.uk/id/local-authority/12UE,Huntingdonshire District Council,27/06/2017,28/06/2017,212263,IN16PS17003134,204.15,WHISTL UK LTD,CR424061,Housing  Benefits Admin,Postage,231
http://statistics.data.gov.uk/id/local-authority/12UE,Huntingdonshire District Council,27/06/2017,27/06/2017,212060,191198,"2,378.00",T M BROWNE LTD,CR424796,Improvement Grants,Mandatory Grants,801
http://statistics.data.gov.uk/id/local-authority/12UE,Huntingdonshire District Council,29/06/2017,29/06/2017,212260,SIN084073,"2,367.37",QUADRANT SECURITY GROUP,CR027775,Cctv Shared Service,Equipment Maintenance,511
http://statistics.data.gov.uk/id/local-authority/12UE,Huntingdonshire District Council,13/06/2017,13/06/2017,211347,4469,"2,300.82",WHITE COMMERCIAL SURVEYORS LTD,CR412242,Customer Service Centres,Rent,410
http://statistics.data.gov.uk/id/local-authority/12UE,Huntingdonshire District Council,01/06/2017,08/06/2017,210952,944,"2,292.38",HACT,CR455657,Concessionary Fares,Contribution (Paid Out),810
http://statistics.data.gov.uk/id/local-authority/12UE,Huntingdonshire District Council,07/06/2017,07/06/2017,211160,BC00265,"2,250.00",BARRY CORNELIUS ASSOCIATES,CR422523,Financial Services Mus,Hired Staff,100
http://statistics.data.gov.uk/id/local-authority/12UE,Huntingdonshire District Council,15/06/2017,15/06/2017,211851,12489088380,"2,209.56",E-ON ENERGY,CR416430,One Leisure St Neots,Gas,421
http://statistics.data.gov.uk/id/local-authority/12UE,Huntingdonshire District Council,14/06/2017,14/06/2017,211429,17006688,"2,160.00",TECHNOGYM UK LTD,CR033037,One Leisure St Ives,Software,206
http://statistics.data.gov.uk/id/local-authority/12UE,Huntingdonshire District Council,14/06/2017,14/06/2017,211430,17006682,"2,160.00",TECHNOGYM UK LTD,CR033037,One Leisure Sawtry,Software,206
http://statistics.data.gov.uk/id/local-authority/12UE,Huntingdonshire District Council,01/06/2017,01/06/2017,210027,1007536416,"2,145.00",HAYS,CR423917,Chief Executive & Comt,Hired Staff,100
http://statistics.data.gov.uk/id/local-authority/12UE,Huntingdonshire District Council,07/06/2017,08/06/2017,211126,REDACTED,"2,140.00",PREMIER IT RECRUITMENT LTD,CR454029,Imd Shared Service,Hired Staff,100
http://statistics.data.gov.uk/id/local-authority/12UE,Huntingdonshire District Council,15/06/2017,15/06/2017,211667,125176,"2,100.00",IT TALENT SOLUTIONS LTD,CR482676,Imd Shared Service,Hired Staff,100
http://statistics.data.gov.uk/id/local-authority/12UE,Huntingdonshire District Council,12/06/2017,14/06/2017,211494,1000,"2,082.15",MIRAMAR ENGINEERING LTD,CR424694,Pathfinder House Site,Plant & Equipment Maintenance,380
http://statistics.data.gov.uk/id/local-authority/12UE,Huntingdonshire District Council,08/06/2017,08/06/2017,211201,1007619530,"2,080.00",HAYS,CR423917,Property Development And Mgt,Hired Staff,100
http://statistics.data.gov.uk/id/local-authority/12UE,Huntingdonshire District Council,15/06/2017,15/06/2017,211689,7.42878E+14,"1,255.64",VIRGIN MEDIA BUSINESS,CR033120,Imd Shared Service,Telephone &Mobile Phonecharges,240
http://statistics.data.gov.uk/id/local-authority/12UE,Huntingdonshire District Council,15/06/2017,15/06/2017,211689,7.42878E+14,796.37,VIRGIN MEDIA BUSINESS,CR033120,Imd Shared Service,I T Line Rental,248
http://statistics.data.gov.uk/id/local-authority/12UE,Huntingdonshire District Council,15/06/2017,15/06/2017,211689,7.42878E+14,5.75,VIRGIN MEDIA BUSINESS,CR033120,Member Allowances & Support,I T Line Rental,248
http://statistics.data.gov.uk/id/local-authority/12UE,Huntingdonshire District Council,15/06/2017,15/06/2017,211689,7.42878E+14,6.49,VIRGIN MEDIA BUSINESS,CR033120,One Leisure Huntingdon,Telephone &Mobile Phonecharges,240
http://statistics.data.gov.uk/id/local-authority/12UE,Huntingdonshire District Council,15/06/2017,15/06/2017,211689,7.42878E+14,8,VIRGIN MEDIA BUSINESS,CR033120,One Leisure St Ives,I T Line Rental,248
http://statistics.data.gov.uk/id/local-authority/12UE,Huntingdonshire District Council,09/06/2017,09/06/2017,211379,103090,"1,033.68",BANDVULC TRUCK TYRES,CR406810,Domestic Refuse,Tyres,630
http://statistics.data.gov.uk/id/local-authority/12UE,Huntingdonshire District Council,09/06/2017,09/06/2017,211379,103090,"1,033.68",BANDVULC TRUCK TYRES,CR406810,Recycling,Tyres,630
http://statistics.data.gov.uk/id/local-authority/12UE,Huntingdonshire District Council,13/06/2017,13/06/2017,211557,1700366,"2,050.00",WEIGHTMANS,CR455744,Oak Tree Health Centre,Consultants,711
http://statistics.data.gov.uk/id/local-authority/12UE,Huntingdonshire District Council,21/06/2017,22/06/2017,211691,107902/111530,"2,031.54",GALTEC SOLUTIONS LTD,CR423396,Scdc Recharge Invoices,Other I T Hardware,203
http://statistics.data.gov.uk/id/local-authority/12UE,Huntingdonshire District Council,27/06/2017,27/06/2017,612985,285,"2,030.00",COACH & HORSES,CR410824,Homelessness Management,Bed & Breakfast Payment,818
http://statistics.data.gov.uk/id/local-authority/12UE,Huntingdonshire District Council,07/06/2017,07/06/2017,211161,BC00253,"2,025.00",BARRY CORNELIUS ASSOCIATES,CR422523,Financial Services Mus,Hired Staff,100
http://statistics.data.gov.uk/id/local-authority/12UE,Huntingdonshire District Council,15/06/2017,15/06/2017,211677,90425506,"2,025.00",ADVANTAGE RESOURCING,CR424715,Imd Shared Service,Hired Staff,100
http://statistics.data.gov.uk/id/local-authority/12UE,Huntingdonshire District Council,28/06/2017,29/06/2017,212328,90412328,"2,025.00",ADVANTAGE RESOURCING,CR424715,Imd Shared Service,Hired Staff,100
http://statistics.data.gov.uk/id/local-authority/12UE,Huntingdonshire District Council,14/06/2017,14/06/2017,211200,17/13,"2,000.00",JBA CONSTRUCTION & MANAGEMENT SERVICES,CR416716,Leisure Centres Capital,Building Mtce,303
http://statistics.data.gov.uk/id/local-authority/12UE,Huntingdonshire District Council,22/06/2017,22/06/2017,211520,IN0601285,"1,999.65",STAFFLINE GROUP,CR416827,Recycling,Hired Staff,100
http://statistics.data.gov.uk/id/local-authority/12UE,Huntingdonshire District Council,01/06/2017,01/06/2017,210673,108385,"1,998.05",GELPACK EXCELSIOR LIMITED,CR002966,Domestic Refuse,Refuse Sacks,552
http://statistics.data.gov.uk/id/local-authority/12UE,Huntingdonshire District Council,09/06/2017,09/06/2017,211401,108450,"1,998.05",GELPACK EXCELSIOR LIMITED,CR002966,Domestic Refuse,Refuse Sacks,552
http://statistics.data.gov.uk/id/local-authority/12UE,Huntingdonshire District Council,14/06/2017,14/06/2017,211031,96342326,"1,386.60",TERBERG MATEC UK LTD,CR402183,Domestic Refuse,Vehicle Parts & Fittings,625
http://statistics.data.gov.uk/id/local-authority/12UE,Huntingdonshire District Council,14/06/2017,14/06/2017,211031,96342326,594.26,TERBERG MATEC UK LTD,CR402183,Recycling,Vehicle Parts & Fittings,625
http://statistics.data.gov.uk/id/local-authority/12UE,Huntingdonshire District Council,27/06/2017,28/06/2017,208851,SI389886-1,"1,980.00",RLSS DIRECT,CR401615,Human Resources,Training,130
http://statistics.data.gov.uk/id/local-authority/12UE,Huntingdonshire District Council,20/06/2017,20/06/2017,612795,B/60,"1,958.00",THE BENWICK INTERNAL DRAINAGE BRD,CR000296,Internal Drainage Boards,Levies,861
http://statistics.data.gov.uk/id/local-authority/12UE,Huntingdonshire District Council,07/06/2017,08/06/2017,211123,1258777098,50,ORANGE AIRTIME,CR455799,Cctv Shared Service,Telephone &Mobile Phonecharges,240
http://statistics.data.gov.uk/id/local-authority/12UE,Huntingdonshire District Council,07/06/2017,08/06/2017,211123,1258777098,8,ORANGE AIRTIME,CR455799,Central Services M Us,Telephone &Mobile Phonecharges,240
http://statistics.data.gov.uk/id/local-authority/12UE,Huntingdonshire District Council,07/06/2017,08/06/2017,211123,1258777098,82.14,ORANGE AIRTIME,CR455799,Environmental Management,Telephone &Mobile Phonecharges,240
http://statistics.data.gov.uk/id/local-authority/12UE,Huntingdonshire District Council,07/06/2017,08/06/2017,211123,1258777098,"1,597.68",ORANGE AIRTIME,CR455799,Hdc Recharge Invoices,Telephone &Mobile Phonecharges,240
http://statistics.data.gov.uk/id/local-authority/12UE,Huntingdonshire District Council,07/06/2017,08/06/2017,211123,1258777098,181.59,ORANGE AIRTIME,CR455799,Imd Shared Service,Telephone &Mobile Phonecharges,240
http://statistics.data.gov.uk/id/local-authority/12UE,Huntingdonshire District Council,02/06/2017,02/06/2017,210973,408587,"1,916.80",OPM,CR477762,Member Allowances & Support,Training,130
http://statistics.data.gov.uk/id/local-authority/12UE,Huntingdonshire District Council,13/06/2017,13/06/2017,211563,94539610,"1,900.00",NORTHGATE ARINSO,CR416738,Human Resources,Training,130
http://statistics.data.gov.uk/id/local-authority/12UE,Huntingdonshire District Council,28/06/2017,29/06/2017,212349,6003573582,"1,900.00",CAPITA BUSINESS SERVICES LTD,CR410639,Scdc Recharge Invoices,Hired Staff,100
http://statistics.data.gov.uk/id/local-authority/12UE,Huntingdonshire District Council,07/06/2017,07/06/2017,612363,RW/RATES,"1,897.50",HOLMEWOOD DISTRICT INTERNAL DRAINAGE BOARD,CR406427,Internal Drainage Boards,Levies,861
http://statistics.data.gov.uk/id/local-authority/12UE,Huntingdonshire District Council,19/06/2017,20/06/2017,211510,5199428,"1,897.20",PRISM MEDICAL UK,CR480892,Improvement Grants,Mandatory Grants,801
http://statistics.data.gov.uk/id/local-authority/12UE,Huntingdonshire District Council,09/06/2017,09/06/2017,211375,8055862363,"1,889.90",ANGLIAN WATER,CR000071,One Leisure Huntingdon,Water & Sewerage,432
http://statistics.data.gov.uk/id/local-authority/12UE,Huntingdonshire District Council,20/06/2017,20/06/2017,612789,,"1,880.00",BEDFORD COUNTY COURT AND FAMILY COURT HEARING,CR424798,N N D R Administration,Legal Fees,729
http://statistics.data.gov.uk/id/local-authority/12UE,Huntingdonshire District Council,19/06/2017,19/06/2017,612780,REDACTED,"1,872.50",LET IT,CR482293,Housing Tenant Debtors,Cash Advance,6
http://statistics.data.gov.uk/id/local-authority/12UE,Huntingdonshire District Council,20/06/2017,20/06/2017,211950,6473A,"1,855.00",ISUZU TRUCK UK LTD,CR424105,Vehicles & Plant Capital,Vehicles Purchased,600
http://statistics.data.gov.uk/id/local-authority/12UE,Huntingdonshire District Council,20/06/2017,20/06/2017,211951,6474A,"1,855.00",ISUZU TRUCK UK LTD,CR424105,Vehicles & Plant Capital,Vehicles Purchased,600
http://statistics.data.gov.uk/id/local-authority/12UE,Huntingdonshire District Council,01/06/2017,01/06/2017,210618,258650,"1,809.60",SHAW & SONS LIMITED,CR003422,Elections,Stationery,225
http://statistics.data.gov.uk/id/local-authority/12UE,Huntingdonshire District Council,12/06/2017,12/06/2017,211021,IN16PS17002756,277.88,WHISTL UK LTD,CR424061,Council Tax,Postage,231
http://statistics.data.gov.uk/id/local-authority/12UE,Huntingdonshire District Council,12/06/2017,12/06/2017,211021,IN16PS17002756,798.06,WHISTL UK LTD,CR424061,Document Centre,Postage,231
http://statistics.data.gov.uk/id/local-authority/12UE,Huntingdonshire District Council,12/06/2017,12/06/2017,211021,IN16PS17002756,539.08,WHISTL UK LTD,CR424061,Electoral Registration,Postage,231
http://statistics.data.gov.uk/id/local-authority/12UE,Huntingdonshire District Council,12/06/2017,12/06/2017,211021,IN16PS17002756,190.81,WHISTL UK LTD,CR424061,Housing  Benefits Admin,Postage,231
http://statistics.data.gov.uk/id/local-authority/12UE,Huntingdonshire District Council,07/06/2017,08/06/2017,211130,125151,"1,800.00",IT TALENT SOLUTIONS LTD,CR482676,Imd Shared Service,Hired Staff,100
http://statistics.data.gov.uk/id/local-authority/12UE,Huntingdonshire District Council,28/06/2017,29/06/2017,212342,125350,"1,800.00",IT TALENT SOLUTIONS LTD,CR482676,Imd Shared Service,Hired Staff,100
http://statistics.data.gov.uk/id/local-authority/12UE,Huntingdonshire District Council,27/06/2017,28/06/2017,212262,1131653313,"1,789.21",KONICA MINOLTA,CR478866,Document Centre,Equipment Maintenance,511
http://statistics.data.gov.uk/id/local-authority/12UE,Huntingdonshire District Council,12/06/2017,12/06/2017,211465,5235,"1,775.40",CMS,CR423970,Imd Shared Service,Equipment,500
http://statistics.data.gov.uk/id/local-authority/12UE,Huntingdonshire District Council,14/06/2017,14/06/2017,211623,18775,"1,756.71",KING STREET HOUSING SOCIETY,CR409301,Homelessness Management,Management Charge,733
http://statistics.data.gov.uk/id/local-authority/12UE,Huntingdonshire District Council,07/06/2017,07/06/2017,210346,IN0599981,"1,722.48",STAFFLINE GROUP,CR416827,Domestic Refuse,Hired Staff,100
http://statistics.data.gov.uk/id/local-authority/12UE,Huntingdonshire District Council,15/06/2017,15/06/2017,211852,12489088110,"1,708.94",E-ON ENERGY,CR416430,One Leisure Huntingdon,Gas,421
http://statistics.data.gov.uk/id/local-authority/12UE,Huntingdonshire District Council,15/06/2017,15/06/2017,211693,OP/I799875,"1,706.64",PHOENIX SOFTWARE LTD,CR031918,Hdc Recharge Invoices,Software,206
http://statistics.data.gov.uk/id/local-authority/12UE,Huntingdonshire District Council,15/06/2017,15/06/2017,211670,LA438359,"1,704.50",L A INTERNATIONAL COMPUTER CONSULTANTS LTD,CR424731,Imd Shared Service,Hired Staff,100
http://statistics.data.gov.uk/id/local-authority/12UE,Huntingdonshire District Council,21/06/2017,22/06/2017,211994,LA439466,"1,704.50",L A INTERNATIONAL COMPUTER CONSULTANTS LTD,CR424731,Imd Shared Service,Hired Staff,100
http://statistics.data.gov.uk/id/local-authority/12UE,Huntingdonshire District Council,28/06/2017,29/06/2017,212326,LA440108,"1,704.50",L A INTERNATIONAL COMPUTER CONSULTANTS LTD,CR424731,Imd Shared Service,Hired Staff,100
http://statistics.data.gov.uk/id/local-authority/12UE,Huntingdonshire District Council,08/06/2017,08/06/2017,211195,HDC065,"1,674.00",CFL ESTATE SERVICES,CR455208,Property Development And Mgt,Hired Staff,100
http://statistics.data.gov.uk/id/local-authority/12UE,Huntingdonshire District Council,07/06/2017,07/06/2017,211071,SILC-TR-I1779,"1,650.00",TONY GAY,CR415274,Leisure Centres Capital,Building Mtce,303
http://statistics.data.gov.uk/id/local-authority/12UE,Huntingdonshire District Council,15/06/2017,15/06/2017,211662,125175,"1,650.00",IT TALENT SOLUTIONS LTD,CR482676,Imd Shared Service,Hired Staff,100
http://statistics.data.gov.uk/id/local-authority/12UE,Huntingdonshire District Council,20/06/2017,20/06/2017,211956,HOMELESS PREV,"1,640.88",GIGGS AND COMPANY,CR423052,Homelessness Management,Incentive Payment,816
http://statistics.data.gov.uk/id/local-authority/12UE,Huntingdonshire District Council,27/06/2017,27/06/2017,612987,REDACTED,"1,625.00",NOONAN CRANE,CR479774,Housing Tenant Debtors,Cash Advance,6
http://statistics.data.gov.uk/id/local-authority/12UE,Huntingdonshire District Council,07/06/2017,08/06/2017,211129,125127,"1,575.00",IT TALENT SOLUTIONS LTD,CR482676,Imd Shared Service,Hired Staff,100
http://statistics.data.gov.uk/id/local-authority/12UE,Huntingdonshire District Council,12/06/2017,12/06/2017,211482,41226290,"1,573.34",SWALEC,CR407130,Countryside,Electricity,420
http://statistics.data.gov.uk/id/local-authority/12UE,Huntingdonshire District Council,12/06/2017,12/06/2017,211483,231422001,"1,534.26",ANGLIAN WATER,CR000071,Pathfinder House Site,Water & Sewerage,432
http://statistics.data.gov.uk/id/local-authority/12UE,Huntingdonshire District Council,09/06/2017,09/06/2017,211362,3299,"1,530.86",SCI PRINT LIMITED,CR416581,Elections,Printing (External),220
http://statistics.data.gov.uk/id/local-authority/12UE,Huntingdonshire District Council,29/06/2017,29/06/2017,212599,92347251,"1,506.00",NEOPOST,CR400652,Electoral Registration,Equipment,500
http://statistics.data.gov.uk/id/local-authority/12UE,Huntingdonshire District Council,01/06/2017,01/06/2017,210786,74043,"1,500.00",MACDONALD & COMPANY FREELANCE LTD,CR424684,Property Development And Mgt,Hired Staff,100
http://statistics.data.gov.uk/id/local-authority/12UE,Huntingdonshire District Council,07/06/2017,07/06/2017,211155,74177,"1,500.00",MACDONALD & COMPANY FREELANCE LTD,CR424684,Property Development And Mgt,Hired Staff,100
http://statistics.data.gov.uk/id/local-authority/12UE,Huntingdonshire District Council,22/06/2017,22/06/2017,212040,U001466,"1,500.00",TECHNOLOGY ONE LTD,CR424111,Financial Mgt System Replacmnt,Software,206
http://statistics.data.gov.uk/id/local-authority/12UE,Huntingdonshire District Council,14/06/2017,14/06/2017,211411,10818753,"1,480.25",SHB HIRE LTD,CR416566,Domestic Refuse,Vehicle Hire,607
http://statistics.data.gov.uk/id/local-authority/12UE,Huntingdonshire District Council,12/06/2017,14/06/2017,211339,27749,"1,428.25",M & N VEHICLE SERVICES,CR480661,Domestic Refuse,Vehicle Parts & Fittings,625
http://statistics.data.gov.uk/id/local-authority/12UE,Huntingdonshire District Council,07/06/2017,07/06/2017,210436,5171,312,INFLATABLE TESTING & REPAIRING SERVICES LTD,CR410226,One Leisure Huntingdon,Equipment Maintenance,511
http://statistics.data.gov.uk/id/local-authority/12UE,Huntingdonshire District Council,07/06/2017,07/06/2017,210436,5171,276,INFLATABLE TESTING & REPAIRING SERVICES LTD,CR410226,One Leisure Ramsey,Equipment Maintenance,511
http://statistics.data.gov.uk/id/local-authority/12UE,Huntingdonshire District Council,07/06/2017,07/06/2017,210436,5171,276,INFLATABLE TESTING & REPAIRING SERVICES LTD,CR410226,One Leisure Sawtry,Equipment Maintenance,511
http://statistics.data.gov.uk/id/local-authority/12UE,Huntingdonshire District Council,07/06/2017,07/06/2017,210436,5171,276,INFLATABLE TESTING & REPAIRING SERVICES LTD,CR410226,One Leisure St Ives,Equipment Maintenance,511
http://statistics.data.gov.uk/id/local-authority/12UE,Huntingdonshire District Council,07/06/2017,07/06/2017,210436,5171,276,INFLATABLE TESTING & REPAIRING SERVICES LTD,CR410226,One Leisure St Neots,Equipment Maintenance,511
http://statistics.data.gov.uk/id/local-authority/12UE,Huntingdonshire District Council,07/06/2017,08/06/2017,211125,WN70304208,"1,414.45",CAPITA RESOURCING LTD,CR030165,Imd Shared Service,Hired Staff,100
http://statistics.data.gov.uk/id/local-authority/12UE,Huntingdonshire District Council,28/06/2017,29/06/2017,212331,124991,"1,400.00",IT TALENT SOLUTIONS LTD,CR482676,Imd Shared Service,Hired Staff,100
http://statistics.data.gov.uk/id/local-authority/12UE,Huntingdonshire District Council,28/06/2017,29/06/2017,212340,125302,"1,400.00",IT TALENT SOLUTIONS LTD,CR482676,Imd Shared Service,Hired Staff,100
http://statistics.data.gov.uk/id/local-authority/12UE,Huntingdonshire District Council,28/06/2017,29/06/2017,212345,125239,"1,400.00",IT TALENT SOLUTIONS LTD,CR482676,Imd Shared Service,Hired Staff,100
http://statistics.data.gov.uk/id/local-authority/12UE,Huntingdonshire District Council,09/06/2017,09/06/2017,211377,8056038669,"1,392.85",ANGLIAN WATER,CR000071,One Leisure St Neots,Water & Sewerage,432
http://statistics.data.gov.uk/id/local-authority/12UE,Huntingdonshire District Council,14/06/2017,14/06/2017,210750,9791,"1,377.99",ROGER WILSON ELECTRONICS,CR028041,One Leisure St Neots,Building Mtce,303
http://statistics.data.gov.uk/id/local-authority/12UE,Huntingdonshire District Council,21/06/2017,22/06/2017,211659,80339,320,JSA LEISURE LTD,CR40187,One Leisure Huntingdon,Building Mtce,303
http://statistics.data.gov.uk/id/local-authority/12UE,Huntingdonshire District Council,21/06/2017,22/06/2017,211659,80339,500,JSA LEISURE LTD,CR40187,One Leisure St Ives,Building Mtce,303
http://statistics.data.gov.uk/id/local-authority/12UE,Huntingdonshire District Council,21/06/2017,22/06/2017,211659,80339,550,JSA LEISURE LTD,CR40187,One Leisure St Neots,Building Mtce,303
http://statistics.data.gov.uk/id/local-authority/12UE,Huntingdonshire District Council,12/06/2017,12/06/2017,211478,IN16PS17002867,"1,236.36",WHISTL UK LTD,CR424061,Document Centre,Postage,231
http://statistics.data.gov.uk/id/local-authority/12UE,Huntingdonshire District Council,12/06/2017,12/06/2017,211478,IN16PS17002867,129.68,WHISTL UK LTD,CR424061,Electoral Registration,Postage,231
http://statistics.data.gov.uk/id/local-authority/12UE,Huntingdonshire District Council,14/06/2017,14/06/2017,211621,19696,"1,366.00",KING STREET HOUSING SOCIETY,CR409301,Homelessness Management,Management Charge,733
http://statistics.data.gov.uk/id/local-authority/12UE,Huntingdonshire District Council,15/06/2017,15/06/2017,211669,LA438360,"1,363.60",L A INTERNATIONAL COMPUTER CONSULTANTS LTD,CR424731,Imd Shared Service,Hired Staff,100
http://statistics.data.gov.uk/id/local-authority/12UE,Huntingdonshire District Council,27/06/2017,27/06/2017,211894,20226,"1,350.20",M WATSON CONSTRUCTION LTD,CR480595,Improvement Grants,Mandatory Grants,801
http://statistics.data.gov.uk/id/local-authority/12UE,Huntingdonshire District Council,01/06/2017,01/06/2017,210776,24126,"1,330.99",B. S. GRAVES ELECTRICAL LTD,CR000363,Off Street Parking,Plant & Equipment Maintenance,380
http://statistics.data.gov.uk/id/local-authority/12UE,Huntingdonshire District Council,27/06/2017,28/06/2017,212266,IN16PS17003122,286.77,WHISTL UK LTD,CR424061,Council Tax,Postage,231
http://statistics.data.gov.uk/id/local-authority/12UE,Huntingdonshire District Council,27/06/2017,28/06/2017,212266,IN16PS17003122,"1,029.99",WHISTL UK LTD,CR424061,Document Centre,Postage,231
http://statistics.data.gov.uk/id/local-authority/12UE,Huntingdonshire District Council,14/06/2017,14/06/2017,211631,91391543,"1,315.19",NORTHGATE INFORMATION SOLUTIONS UK LTD,CR415749,Housing  Benefits Admin,Government Grants,B50
http://statistics.data.gov.uk/id/local-authority/12UE,Huntingdonshire District Council,09/06/2017,09/06/2017,211029,704672,"1,307.47",ERNEST DOE & SONS,CR000261,Grounds Maintenance,Vehicle Parts & Fittings,625
http://statistics.data.gov.uk/id/local-authority/12UE,Huntingdonshire District Council,14/06/2017,14/06/2017,211606,9502236823,"1,305.00",JOHNSON HEALTH TECH UK LTD,CR423485,One Leisure Sawtry,Equipment,500
http://statistics.data.gov.uk/id/local-authority/12UE,Huntingdonshire District Council,12/06/2017,12/06/2017,211462,24168,"1,269.50",B S GRAVES ELECTRICAL LTD,CR003146,E F H And Depots,Building Mtce,303
http://statistics.data.gov.uk/id/local-authority/12UE,Huntingdonshire District Council,14/06/2017,14/06/2017,211585,15751,27.9,JADE SECURITY SERVICES LTD,CR422256,Countryside,Cash Collection,702
http://statistics.data.gov.uk/id/local-authority/12UE,Huntingdonshire District Council,14/06/2017,14/06/2017,211585,15751,279,JADE SECURITY SERVICES LTD,CR422256,Financial Services,Cash Collection,702
http://statistics.data.gov.uk/id/local-authority/12UE,Huntingdonshire District Council,14/06/2017,14/06/2017,211585,15751,251.1,JADE SECURITY SERVICES LTD,CR422256,One Leisure Huntingdon,Cash Collection,702
http://statistics.data.gov.uk/id/local-authority/12UE,Huntingdonshire District Council,14/06/2017,14/06/2017,211585,15751,69.75,JADE SECURITY SERVICES LTD,CR422256,One Leisure Ramsey,Cash Collection,702
http://statistics.data.gov.uk/id/local-authority/12UE,Huntingdonshire District Council,14/06/2017,14/06/2017,211585,15751,69.75,JADE SECURITY SERVICES LTD,CR422256,One Leisure Sawtry,Cash Collection,702
http://statistics.data.gov.uk/id/local-authority/12UE,Huntingdonshire District Council,14/06/2017,14/06/2017,211585,15751,181.35,JADE SECURITY SERVICES LTD,CR422256,One Leisure St Ives,Cash Collection,702
http://statistics.data.gov.uk/id/local-authority/12UE,Huntingdonshire District Council,14/06/2017,14/06/2017,211585,15751,195.3,JADE SECURITY SERVICES LTD,CR422256,One Leisure St Neots,Cash Collection,702
http://statistics.data.gov.uk/id/local-authority/12UE,Huntingdonshire District Council,14/06/2017,14/06/2017,211585,15751,195.3,JADE SECURITY SERVICES LTD,CR422256,One Leisure St Neots,Cash Collection,702
http://statistics.data.gov.uk/id/local-authority/12UE,Huntingdonshire District Council,07/06/2017,07/06/2017,211162,BOOGIE NIGHT,"1,254.35",STARLITE ROADSHOW,CR024127,One Leisure St Ives,Entertainments Inc Cable Tv,744
http://statistics.data.gov.uk/id/local-authority/12UE,Huntingdonshire District Council,07/06/2017,08/06/2017,211131,INV543270,"1,250.00",BOTTOMLINE TECHNOLOGIES LTD,CR422020,Hdc Recharge Invoices,Software,206
http://statistics.data.gov.uk/id/local-authority/12UE,Huntingdonshire District Council,21/06/2017,22/06/2017,211868,667670,"1,224.68",LACONS,CR422174,One Leisure St Ives,Bar Provisions,558
http://statistics.data.gov.uk/id/local-authority/12UE,Huntingdonshire District Council,26/06/2017,26/06/2017,212190,ARBK/99042756,"1,210.00",ADVANCED BUSINESS SOLUTIONS,CR032921,Financial Services Mus,Consultants,711
http://statistics.data.gov.uk/id/local-authority/12UE,Huntingdonshire District Council,26/06/2017,26/06/2017,212192,ARBK/99042638,"1,210.00",ADVANCED BUSINESS SOLUTIONS,CR032921,Financial Services Mus,Consultants,711
http://statistics.data.gov.uk/id/local-authority/12UE,Huntingdonshire District Council,01/06/2017,01/06/2017,210687,10732576,"1,200.00",CAMBRIDGESHIRE COUNTY COUNCIL,CR006678,Domestic Refuse,Waste Disposal,763
http://statistics.data.gov.uk/id/local-authority/12UE,Huntingdonshire District Council,14/06/2017,14/06/2017,211588,74310,"1,200.00",MACDONALD & COMPANY FREELANCE LTD,CR424684,Property Development And Mgt,Hired Staff,100
http://statistics.data.gov.uk/id/local-authority/12UE,Huntingdonshire District Council,15/06/2017,15/06/2017,211666,125218,"1,200.00",IT TALENT SOLUTIONS LTD,CR482676,Imd Shared Service,Hired Staff,100
http://statistics.data.gov.uk/id/local-authority/12UE,Huntingdonshire District Council,14/06/2017,14/06/2017,612611,REDACTED,"1,190.00",REDACTED,CR424793,Housing Tenant Debtors,Cash Advance,6
http://statistics.data.gov.uk/id/local-authority/12UE,Huntingdonshire District Council,21/06/2017,27/06/2017,211983,9054582852,695.42,ROYAL MAIL,CR027083,Document Centre,Postage,231
http://statistics.data.gov.uk/id/local-authority/12UE,Huntingdonshire District Council,21/06/2017,27/06/2017,211983,9054582852,384.94,ROYAL MAIL,CR027083,Elections,Postage,231
http://statistics.data.gov.uk/id/local-authority/12UE,Huntingdonshire District Council,21/06/2017,27/06/2017,211983,9054582852,86.2,ROYAL MAIL,CR027083,Electoral Registration,Postage,231
http://statistics.data.gov.uk/id/local-authority/12UE,Huntingdonshire District Council,07/06/2017,07/06/2017,211095,DE11036988,811.25,DENNIS EAGLE LTD,CR000200,Domestic Refuse,Vehicle Parts & Fittings,625
http://statistics.data.gov.uk/id/local-authority/12UE,Huntingdonshire District Council,07/06/2017,07/06/2017,211095,DE11036988,347.68,DENNIS EAGLE LTD,CR000200,Recycling,Vehicle Parts & Fittings,625
http://statistics.data.gov.uk/id/local-authority/12UE,Huntingdonshire District Council,27/06/2017,28/06/2017,212223,INV-0082,"1,149.17",SPEAKERS FROM THE EDGE,CR423404,One Leisure St Ives,Entertainments Inc Cable Tv,744
http://statistics.data.gov.uk/id/local-authority/12UE,Huntingdonshire District Council,12/06/2017,14/06/2017,211502,893579,"1,147.21",PILGRIM FOODSERVICE LTD,CR455695,Countryside,Catering Materials,559
http://statistics.data.gov.uk/id/local-authority/12UE,Huntingdonshire District Council,12/06/2017,12/06/2017,211473,9054546908,"1,125.02",ROYAL MAIL,CR027083,Elections,Postage,231
http://statistics.data.gov.uk/id/local-authority/12UE,Huntingdonshire District Council,15/06/2017,15/06/2017,211663,125225,"1,120.00",IT TALENT SOLUTIONS LTD,CR482676,Imd Shared Service,Hired Staff,100
http://statistics.data.gov.uk/id/local-authority/12UE,Huntingdonshire District Council,15/06/2017,15/06/2017,211664,125192,"1,120.00",IT TALENT SOLUTIONS LTD,CR482676,Imd Shared Service,Hired Staff,100
http://statistics.data.gov.uk/id/local-authority/12UE,Huntingdonshire District Council,29/06/2017,29/06/2017,212424,8608,"1,119.26",J A K WATER SYSTEMS LTD,CR482650,Leisure Centres Capital,Building Mtce,303
http://statistics.data.gov.uk/id/local-authority/12UE,Huntingdonshire District Council,21/06/2017,22/06/2017,211999,HSMLI1700114,"1,118.99",HORNBILL SERVICE MANAGEMENT LIMITED,CR423491,Imd Shared Service,Software,206
http://statistics.data.gov.uk/id/local-authority/12UE,Huntingdonshire District Council,07/06/2017,08/06/2017,211127,LA437029,"1,110.00",L A INTERNATIONAL COMPUTER CONSULTANTS LTD,CR424731,Imd Shared Service,Hired Staff,100
http://statistics.data.gov.uk/id/local-authority/12UE,Huntingdonshire District Council,28/06/2017,29/06/2017,212327,LA440109,"1,110.00",L A INTERNATIONAL COMPUTER CONSULTANTS LTD,CR424731,Imd Shared Service,Hired Staff,100
http://statistics.data.gov.uk/id/local-authority/12UE,Huntingdonshire District Council,22/06/2017,22/06/2017,212177,T2017/1,"1,107.98",JAMES BUTTON & CO,CR405456,Human Resources,Training,130
http://statistics.data.gov.uk/id/local-authority/12UE,Huntingdonshire District Council,14/06/2017,14/06/2017,211537,IN0602888,"1,098.14",STAFFLINE GROUP,CR416827,Street Cleaning,Hired Staff,100
http://statistics.data.gov.uk/id/local-authority/12UE,Huntingdonshire District Council,29/06/2017,29/06/2017,612994,JWB.45464.8.HZR,"1,076.40",TROWERS & HAMLINS,CR031937,Chief Executive & Comt,Consultants,711
http://statistics.data.gov.uk/id/local-authority/12UE,Huntingdonshire District Council,28/06/2017,29/06/2017,212318,108598/112438,"1,054.23",GALTEC SOLUTIONS LTD,CR423396,Scdc Recharge Invoices,Other I T Hardware,203
http://statistics.data.gov.uk/id/local-authority/12UE,Huntingdonshire District Council,07/06/2017,07/06/2017,211063,Jan-17,"1,050.00",THE STATION HOTEL,CR453752,Homelessness Management,Bed & Breakfast Payment,818
http://statistics.data.gov.uk/id/local-authority/12UE,Huntingdonshire District Council,20/06/2017,20/06/2017,211962,16015090,"1,050.00",CAMBRIDGESHIRE COUNTY COUNCIL,CR017440,Chief Executive & Comt,Pensions,P16
http://statistics.data.gov.uk/id/local-authority/12UE,Huntingdonshire District Council,27/06/2017,27/06/2017,212215,Feb-17,"1,050.00",THE STATION HOTEL,CR453752,Homelessness Management,Bed & Breakfast Payment,818
http://statistics.data.gov.uk/id/local-authority/12UE,Huntingdonshire District Council,22/06/2017,22/06/2017,211627,6081733158,"1,037.04",SNAP ON TOOLS LTD,CR417031,Fleet Management,Materials,550
http://statistics.data.gov.uk/id/local-authority/12UE,Huntingdonshire District Council,01/06/2017,07/06/2017,209167,SINV00108069,"1,025.00",BIST,CR422733,Imd Shared Service,Other I T Hardware,203
http://statistics.data.gov.uk/id/local-authority/12UE,Huntingdonshire District Council,14/06/2017,14/06/2017,211524,IN0601288,"1,023.87",STAFFLINE GROUP,CR416827,Street Cleaning,Hired Staff,100
http://statistics.data.gov.uk/id/local-authority/12UE,Huntingdonshire District Council,07/06/2017,07/06/2017,210767,66227,"1,022.00",CPS MANUFACTORING CO,CR480171,One Leisure St Ives,Equipment Maintenance,511
http://statistics.data.gov.uk/id/local-authority/12UE,Huntingdonshire District Council,22/06/2017,22/06/2017,209425,7635945,"1,020.60",KONE LIFTS LTD,CR000483,E F H And Depots,Plant & Equipment Maintenance,380
http://statistics.data.gov.uk/id/local-authority/12UE,Huntingdonshire District Council,20/06/2017,20/06/2017,211652,59023,"1,018.31",BEEBYS LIMITED,CR415822,Bus Stations,Building Cleaning,440
http://statistics.data.gov.uk/id/local-authority/12UE,Huntingdonshire District Council,02/06/2017,05/06/2017,210972,REDACTED,"1,014.00",T O & S WILLETT,CR424783,Housing Tenant Debtors,Cash Advance,6
http://statistics.data.gov.uk/id/local-authority/12UE,Huntingdonshire District Council,09/06/2017,14/06/2017,211420,4067,990,MALLARD CONSULTANCY LTD,CR455198,Nuisances,Corporate Subscriptions,754
http://statistics.data.gov.uk/id/local-authority/12UE,Huntingdonshire District Council,14/06/2017,14/06/2017,211416,10818757,976.5,SHB HIRE LTD,CR416566,Street Cleaning,Vehicle Hire,607
http://statistics.data.gov.uk/id/local-authority/12UE,Huntingdonshire District Council,14/06/2017,14/06/2017,211418,10818759,976.5,SHB HIRE LTD,CR416566,Domestic Refuse,Vehicle Hire,607
http://statistics.data.gov.uk/id/local-authority/12UE,Huntingdonshire District Council,02/06/2017,07/06/2017,210961,131410558,965,C-WAY DRIVER TRAINING,CR423428,Human Resources,Training,130
http://statistics.data.gov.uk/id/local-authority/12UE,Huntingdonshire District Council,01/06/2017,07/06/2017,210659,7015888,950,IDOX,CR481134,Hdc Recharge Invoices,Software,206
http://statistics.data.gov.uk/id/local-authority/12UE,Huntingdonshire District Council,29/06/2017,29/06/2017,212447,82733095,946,ARCHANT COMMUNITY MEDIA LTD,CR452143,Chief Executive & Comt,Advertising/Promoting Services,255
http://statistics.data.gov.uk/id/local-authority/12UE,Huntingdonshire District Council,07/06/2017,08/06/2017,211136,107769/111610,943,GALTEC SOLUTIONS LTD,CR423396,Ccity Recharge Invoices,Other I T Hardware,203
http://statistics.data.gov.uk/id/local-authority/12UE,Huntingdonshire District Council,07/06/2017,08/06/2017,211137,107406/111501,943,GALTEC SOLUTIONS LTD,CR423396,Imd Shared Service,Other I T Hardware,203
http://statistics.data.gov.uk/id/local-authority/12UE,Huntingdonshire District Council,22/06/2017,22/06/2017,211535,IN0604092,938.26,STAFFLINE GROUP,CR416827,Domestic Refuse,Hired Staff,100
http://statistics.data.gov.uk/id/local-authority/12UE,Huntingdonshire District Council,12/06/2017,14/06/2017,211328,38577,938,MERRIDALE MIS FUEL MONITORING LTD,CR478577,Environmental Management,Equipment Maintenance,511
http://statistics.data.gov.uk/id/local-authority/12UE,Huntingdonshire District Council,07/06/2017,07/06/2017,210823,18322,932.5,WARBOYS SERVICES LTD,CR000841,One Leisure St Ives,Building Mtce,303
http://statistics.data.gov.uk/id/local-authority/12UE,Huntingdonshire District Council,15/06/2017,15/06/2017,211668,LA438361,888,L A INTERNATIONAL COMPUTER CONSULTANTS LTD,CR424731,Imd Shared Service,Hired Staff,100
http://statistics.data.gov.uk/id/local-authority/12UE,Huntingdonshire District Council,15/06/2017,15/06/2017,211668,LA438361,42.11,L A INTERNATIONAL COMPUTER CONSULTANTS LTD,CR424731,Imd Shared Service,Travel Expenses,636
http://statistics.data.gov.uk/id/local-authority/12UE,Huntingdonshire District Council,15/06/2017,15/06/2017,211845,12489090790,929.62,E-ON ENERGY,CR416430,One Leisure Ramsey,Gas,421
http://statistics.data.gov.uk/id/local-authority/12UE,Huntingdonshire District Council,21/06/2017,22/06/2017,212000,INV9982,925,SOCITM,CR403291,Ccity Recharge Invoices,Software,206
http://statistics.data.gov.uk/id/local-authority/12UE,Huntingdonshire District Council,21/06/2017,22/06/2017,212007,ICE462453,920,QA LIMITED,CR479791,Imd Shared Service,Training,130
http://statistics.data.gov.uk/id/local-authority/12UE,Huntingdonshire District Council,01/06/2017,01/06/2017,210669,108386,912.91,ARTHUR IBBETT LTD,CR000430,Countryside,Equipment,500
http://statistics.data.gov.uk/id/local-authority/12UE,Huntingdonshire District Council,07/06/2017,07/06/2017,612359,A14,900,THE WILLOWS GUEST HOUSE,CR411007,Homelessness Management,Bed & Breakfast Payment,818
http://statistics.data.gov.uk/id/local-authority/12UE,Huntingdonshire District Council,21/06/2017,22/06/2017,211872,6388089,897.63,CHUBB FIRE AND SECURITY LTD,CR478924,One Leisure St Neots,Fire & Security,450
http://statistics.data.gov.uk/id/local-authority/12UE,Huntingdonshire District Council,22/06/2017,22/06/2017,211526,IN0602607,896.92,STAFFLINE GROUP,CR416827,Domestic Refuse,Hired Staff,100
http://statistics.data.gov.uk/id/local-authority/12UE,Huntingdonshire District Council,02/06/2017,02/06/2017,210962,94539487,895,NORTHGATE ARINSO,CR416738,Human Resources,Consultants,711
http://statistics.data.gov.uk/id/local-authority/12UE,Huntingdonshire District Council,01/06/2017,01/06/2017,210342,I094980,891,DTS SOLUTIONS (UK) LTD,CR001981,Domestic Refuse,Vehicle Parts & Fittings,625
http://statistics.data.gov.uk/id/local-authority/12UE,Huntingdonshire District Council,15/06/2017,15/06/2017,211849,12489088700,889.8,E-ON ENERGY,CR416430,One Leisure Sawtry,Gas,421
http://statistics.data.gov.uk/id/local-authority/12UE,Huntingdonshire District Council,01/06/2017,01/06/2017,210790,6643,800,D & H SIGN & DISPLAY SERVICES,CR030353,Domestic Refuse,Vehicle Parts & Fittings,625
http://statistics.data.gov.uk/id/local-authority/12UE,Huntingdonshire District Council,01/06/2017,01/06/2017,210790,6643,40,D & H SIGN & DISPLAY SERVICES,CR030353,Grounds Maintenance,Vehicle Parts & Fittings,625
http://statistics.data.gov.uk/id/local-authority/12UE,Huntingdonshire District Council,01/06/2017,01/06/2017,210790,6643,40,D & H SIGN & DISPLAY SERVICES,CR030353,Street Cleaning,Vehicle Parts & Fittings,625
http://statistics.data.gov.uk/id/local-authority/12UE,Huntingdonshire District Council,02/06/2017,02/06/2017,210965,T002175,880,ZEBRA TRAINING SERVICES,CR422646,Human Resources,Training,130
http://statistics.data.gov.uk/id/local-authority/12UE,Huntingdonshire District Council,14/06/2017,14/06/2017,211633,983991,876.53,MORGAN HUNT PUBLIC UK LTD,CR415693,Housing  Benefits Admin,Hired Staff,100
http://statistics.data.gov.uk/id/local-authority/12UE,Huntingdonshire District Council,07/06/2017,07/06/2017,211152,707669,364,CALLCREDIT LTD,CR455548,Council Tax,Enquiries,723
http://statistics.data.gov.uk/id/local-authority/12UE,Huntingdonshire District Council,07/06/2017,07/06/2017,211152,707669,226,CALLCREDIT LTD,CR455548,Financial Services Mus,Enquiries,723
http://statistics.data.gov.uk/id/local-authority/12UE,Huntingdonshire District Council,07/06/2017,07/06/2017,211152,707669,253,CALLCREDIT LTD,CR455548,Housing  Benefits Admin,Enquiries,723
http://statistics.data.gov.uk/id/local-authority/12UE,Huntingdonshire District Council,07/06/2017,07/06/2017,211152,707669,33,CALLCREDIT LTD,CR455548,Housing Management Units,Enquiries,723
http://statistics.data.gov.uk/id/local-authority/12UE,Huntingdonshire District Council,08/06/2017,08/06/2017,211194,HDC066,870,CFL ESTATE SERVICES,CR455208,Property Development And Mgt,Hired Staff,100
http://statistics.data.gov.uk/id/local-authority/12UE,Huntingdonshire District Council,27/06/2017,28/06/2017,212216,121,870,ROGER HYDE LIMITED,CR409426,Leisure Centres Capital,Building Mtce,303
http://statistics.data.gov.uk/id/local-authority/12UE,Huntingdonshire District Council,14/06/2017,14/06/2017,211536,IN0604033,859.42,STAFFLINE GROUP,CR416827,Street Cleaning,Hired Staff,100
http://statistics.data.gov.uk/id/local-authority/12UE,Huntingdonshire District Council,12/06/2017,12/06/2017,211477,441567103,858.37,SWALEC,CR407130,Off Street Parking,Electricity,420
http://statistics.data.gov.uk/id/local-authority/12UE,Huntingdonshire District Council,01/06/2017,01/06/2017,210817,6872624,84.98,ANTALIS LTD,CR479468,Document Centre,Paper,562
http://statistics.data.gov.uk/id/local-authority/12UE,Huntingdonshire District Council,01/06/2017,01/06/2017,210817,6872624,64.12,ANTALIS LTD,CR479468,Document Centre,Paper,562
http://statistics.data.gov.uk/id/local-authority/12UE,Huntingdonshire District Council,01/06/2017,01/06/2017,210817,6872624,96.08,ANTALIS LTD,CR479468,Document Centre,Paper,562
http://statistics.data.gov.uk/id/local-authority/12UE,Huntingdonshire District Council,01/06/2017,01/06/2017,210817,6872624,60.53,ANTALIS LTD,CR479468,Document Centre,Paper,562
http://statistics.data.gov.uk/id/local-authority/12UE,Huntingdonshire District Council,01/06/2017,01/06/2017,210817,6872624,490,ANTALIS LTD,CR479468,Document Centre,Paper,562
http://statistics.data.gov.uk/id/local-authority/12UE,Huntingdonshire District Council,01/06/2017,01/06/2017,210817,6872624,30.85,ANTALIS LTD,CR479468,Document Centre,Paper,562
http://statistics.data.gov.uk/id/local-authority/12UE,Huntingdonshire District Council,01/06/2017,01/06/2017,210817,6872624,30.85,ANTALIS LTD,CR479468,Document Centre,Paper,562
http://statistics.data.gov.uk/id/local-authority/12UE,Huntingdonshire District Council,01/06/2017,07/06/2017,211144,40959,838,CLANPRESS KING'S LYNN LTD,CR413516,Domestic Refuse,Advertising/Promoting Services,255
http://statistics.data.gov.uk/id/local-authority/12UE,Huntingdonshire District Council,15/06/2017,15/06/2017,211703,92338738,830,NEOPOST,CR400652,Document Centre,Envelopes,224
http://statistics.data.gov.uk/id/local-authority/12UE,Huntingdonshire District Council,28/06/2017,29/06/2017,212329,124990,825,IT TALENT SOLUTIONS LTD,CR482676,Imd Shared Service,Hired Staff,100
http://statistics.data.gov.uk/id/local-authority/12UE,Huntingdonshire District Council,28/06/2017,29/06/2017,212338,125294,825,IT TALENT SOLUTIONS LTD,CR482676,Imd Shared Service,Hired Staff,100
http://statistics.data.gov.uk/id/local-authority/12UE,Huntingdonshire District Council,28/06/2017,29/06/2017,212344,125257,825,IT TALENT SOLUTIONS LTD,CR482676,Imd Shared Service,Hired Staff,100
http://statistics.data.gov.uk/id/local-authority/12UE,Huntingdonshire District Council,28/06/2017,29/06/2017,212334,125034,814,IT TALENT SOLUTIONS LTD,CR482676,Imd Shared Service,Hired Staff,100
http://statistics.data.gov.uk/id/local-authority/12UE,Huntingdonshire District Council,28/06/2017,29/06/2017,212348,125246,814,IT TALENT SOLUTIONS LTD,CR482676,Imd Shared Service,Hired Staff,100
http://statistics.data.gov.uk/id/local-authority/12UE,Huntingdonshire District Council,07/06/2017,07/06/2017,210349,IN0599516,811.74,STAFFLINE GROUP,CR416827,Domestic Refuse,Hired Staff,100
http://statistics.data.gov.uk/id/local-authority/12UE,Huntingdonshire District Council,07/06/2017,07/06/2017,210350,IN0599517,802.76,STAFFLINE GROUP,CR416827,Recycling,Hired Staff,100
http://statistics.data.gov.uk/id/local-authority/12UE,Huntingdonshire District Council,29/06/2017,29/06/2017,211186,712954,790,METRO ROD LTD,CR479927,One Leisure St Ives,Building Mtce,303
http://statistics.data.gov.uk/id/local-authority/12UE,Huntingdonshire District Council,14/06/2017,14/06/2017,211437,9800,788.88,ROGER WILSON ELECTRONICS,CR028041,One Leisure St Ives,Building Mtce,303
http://statistics.data.gov.uk/id/local-authority/12UE,Huntingdonshire District Council,07/06/2017,08/06/2017,211140,2980,787.5,FIRMSTEP LTD,CR424773,Scdc Recharge Invoices,Software,206
http://statistics.data.gov.uk/id/local-authority/12UE,Huntingdonshire District Council,29/06/2017,29/06/2017,212176,11598DC,195.7,ASP,CR455201,One Leisure Ramsey,Building Mtce,303
http://statistics.data.gov.uk/id/local-authority/12UE,Huntingdonshire District Council,29/06/2017,29/06/2017,212176,11598DC,195.7,ASP,CR455201,One Leisure Sawtry,Building Mtce,303
http://statistics.data.gov.uk/id/local-authority/12UE,Huntingdonshire District Council,29/06/2017,29/06/2017,212176,11598DC,195.7,ASP,CR455201,One Leisure St Ives,Building Mtce,303
http://statistics.data.gov.uk/id/local-authority/12UE,Huntingdonshire District Council,29/06/2017,29/06/2017,212176,11598DC,195.69,ASP,CR455201,One Leisure St Neots,Building Mtce,303
http://statistics.data.gov.uk/id/local-authority/12UE,Huntingdonshire District Council,01/06/2017,01/06/2017,210783,1637225,774.55,WEIGHTMANS,CR455744,Chief Executive & Comt,Ins (Service Related),260
http://statistics.data.gov.uk/id/local-authority/12UE,Huntingdonshire District Council,07/06/2017,07/06/2017,612364,9200,766.95,STEVES TAXIS & PRIVATE HIRE,CR155956,Homelessness Management,Travel Expenses,636
http://statistics.data.gov.uk/id/local-authority/12UE,Huntingdonshire District Council,14/06/2017,14/06/2017,210816,38SI 3848501,764.43,BRENNTAG UK LTD,CR015017,One Leisure St Neots,Chemicals,551
http://statistics.data.gov.uk/id/local-authority/12UE,Huntingdonshire District Council,05/06/2017,05/06/2017,210996,B300517,755.43,JACOBS,CR422350,Council Tax,Bailiffs,703
http://statistics.data.gov.uk/id/local-authority/12UE,Huntingdonshire District Council,12/06/2017,14/06/2017,211344,62078,753.9,MASKEARAID LTD,CR033423,Pathfinder House Site,Cleaning Materials,443
http://statistics.data.gov.uk/id/local-authority/12UE,Huntingdonshire District Council,21/06/2017,21/06/2017,212010,1706/18513,742.27,GULLIVERS TRUCK HIRE LTD,CR477663,Domestic Refuse,Vehicle Hire,607
http://statistics.data.gov.uk/id/local-authority/12UE,Huntingdonshire District Council,21/06/2017,22/06/2017,211996,R021734,740,PREMIER IT RECRUITMENT LTD,CR454029,Imd Shared Service,Hired Staff,100
http://statistics.data.gov.uk/id/local-authority/12UE,Huntingdonshire District Council,14/06/2017,14/06/2017,211415,10818756,736.25,SHB HIRE LTD,CR416566,Grounds Maintenance,Vehicle Hire,607
http://statistics.data.gov.uk/id/local-authority/12UE,Huntingdonshire District Council,30/06/2017,30/06/2017,212178,227,732.6,INSPIRED SPA SOLUTIONS,CR487218,One Leisure St Ives,Chemicals,551
http://statistics.data.gov.uk/id/local-authority/12UE,Huntingdonshire District Council,01/06/2017,01/06/2017,210713,1705/03719,730,GULLIVERS TRUCK HIRE LTD,CR477663,Domestic Refuse,Vehicle Hire,607
http://statistics.data.gov.uk/id/local-authority/12UE,Huntingdonshire District Council,01/06/2017,01/06/2017,210715,1705/03720,730,GULLIVERS TRUCK HIRE LTD,CR477663,Domestic Refuse,Vehicle Hire,607
http://statistics.data.gov.uk/id/local-authority/12UE,Huntingdonshire District Council,14/06/2017,14/06/2017,211412,10818754,720.75,SHB HIRE LTD,CR416566,Domestic Refuse,Vehicle Hire,607
http://statistics.data.gov.uk/id/local-authority/12UE,Huntingdonshire District Council,29/06/2017,29/06/2017,212410,47,720,SKL PROPERTY SERVICES,CR422708,Leisure Centres Capital,Building Mtce,303
http://statistics.data.gov.uk/id/local-authority/12UE,Huntingdonshire District Council,27/06/2017,27/06/2017,212267,11709,717.25,HEALTH & FITNESS EDUCATION LIMITED,CR424801,Human Resources,Training,130
http://statistics.data.gov.uk/id/local-authority/12UE,Huntingdonshire District Council,14/06/2017,14/06/2017,211507,OLSN0104,701.84,NJL PROPERTY SOLUTIONS,CR423380,One Leisure St Neots,Building Mtce,303
http://statistics.data.gov.uk/id/local-authority/12UE,Huntingdonshire District Council,14/06/2017,14/06/2017,211425,EC1703,700,UKOS PROJECTS LTD,CR423164,Homelessness Management,Bed & Breakfast Payment,818
http://statistics.data.gov.uk/id/local-authority/12UE,Huntingdonshire District Council,20/06/2017,20/06/2017,211896,EC1704,700,UKOS PROJECTS LTD,CR423164,Homelessness Management,Bed & Breakfast Payment,818
http://statistics.data.gov.uk/id/local-authority/12UE,Huntingdonshire District Council,27/06/2017,27/06/2017,212203,EC1705,700,UKOS PROJECTS LTD,CR423164,Homelessness Management,Bed & Breakfast Payment,818
http://statistics.data.gov.uk/id/local-authority/12UE,Huntingdonshire District Council,12/06/2017,12/06/2017,211413,982672,698.86,MORGAN HUNT PUBLIC UK LTD,CR415693,Housing  Benefits Admin,Hired Staff,100
http://statistics.data.gov.uk/id/local-authority/12UE,Huntingdonshire District Council,07/06/2017,07/06/2017,211067,407972,696.6,SMI GROUP,CR423139,Domestic Refuse,Protective Clothing & Uniforms,163
http://statistics.data.gov.uk/id/local-authority/12UE,Huntingdonshire District Council,21/06/2017,21/06/2017,212011,1706/18512,691.27,GULLIVERS TRUCK HIRE LTD,CR477663,Domestic Refuse,Vehicle Hire,607
http://statistics.data.gov.uk/id/local-authority/12UE,Huntingdonshire District Council,01/06/2017,01/06/2017,210726,239,689.39,DMS HOME IMPROVEMENTS & ELECTRICAL,CR479202,E F H And Depots,Building Mtce,303
http://statistics.data.gov.uk/id/local-authority/12UE,Huntingdonshire District Council,21/06/2017,22/06/2017,211912,2103618977,6.28,BOOKER CASH AND CARRY,CR027611,One Leisure St Ives,Materials,550
http://statistics.data.gov.uk/id/local-authority/12UE,Huntingdonshire District Council,21/06/2017,22/06/2017,211912,2103618977,478.53,BOOKER CASH AND CARRY,CR027611,One Leisure St Ives,Bar Provisions,558
http://statistics.data.gov.uk/id/local-authority/12UE,Huntingdonshire District Council,21/06/2017,22/06/2017,211912,2103618977,202.92,BOOKER CASH AND CARRY,CR027611,One Leisure St Ives,Catering Materials,559
http://statistics.data.gov.uk/id/local-authority/12UE,Huntingdonshire District Council,22/06/2017,22/06/2017,211522,IN0601267,685.88,STAFFLINE GROUP,CR416827,Domestic Refuse,Protective Clothing & Uniforms,163
http://statistics.data.gov.uk/id/local-authority/12UE,Huntingdonshire District Council,30/06/2017,30/06/2017,613148,REDACTED,680,REDACTED,CR424803,Human Resources,Training,130
http://statistics.data.gov.uk/id/local-authority/12UE,Huntingdonshire District Council,15/06/2017,15/06/2017,211853,13313569100,677.62,E-ON ENERGY,CR416430,Pathfinder House Site,Gas,421
http://statistics.data.gov.uk/id/local-authority/12UE,Huntingdonshire District Council,15/06/2017,20/06/2017,210968,900780402,672.54,PORTAKABIN LTD,CR478566,Miscellaneous Grants,Hire Of Rooms,411
http://statistics.data.gov.uk/id/local-authority/12UE,Huntingdonshire District Council,21/06/2017,22/06/2017,211995,LA439467,666,L A INTERNATIONAL COMPUTER CONSULTANTS LTD,CR424731,Imd Shared Service,Hired Staff,100
http://statistics.data.gov.uk/id/local-authority/12UE,Huntingdonshire District Council,14/06/2017,14/06/2017,211414,10818755,664.26,SHB HIRE LTD,CR416566,Grounds Maintenance,Vehicle Hire,607
http://statistics.data.gov.uk/id/local-authority/12UE,Huntingdonshire District Council,14/06/2017,14/06/2017,211417,10818758,664.26,SHB HIRE LTD,CR416566,Grounds Maintenance,Vehicle Hire,607
http://statistics.data.gov.uk/id/local-authority/12UE,Huntingdonshire District Council,27/06/2017,28/06/2017,612989,GRAEME HAMMOND,127.56,MR GRAEME HAMMOND,CR424804,One Leisure St Ives,Materials,550
http://statistics.data.gov.uk/id/local-authority/12UE,Huntingdonshire District Council,27/06/2017,28/06/2017,612989,GRAEME HAMMOND,536.67,MR GRAEME HAMMOND,CR424804,One Leisure St Ives,Licences,730
http://statistics.data.gov.uk/id/local-authority/12UE,Huntingdonshire District Council,07/06/2017,07/06/2017,211098,2103548439,660.37,BOOKER CASH AND CARRY,CR027611,Countryside,Catering Materials,559
http://statistics.data.gov.uk/id/local-authority/12UE,Huntingdonshire District Council,28/06/2017,29/06/2017,212343,125290,660,IT TALENT SOLUTIONS LTD,CR482676,Imd Shared Service,Hired Staff,100
http://statistics.data.gov.uk/id/local-authority/12UE,Huntingdonshire District Council,12/06/2017,12/06/2017,211409,268968I,230.96,A C COMMERCIALS,CR000141,Domestic Refuse,Vehicle Oil & Lubricants,626
http://statistics.data.gov.uk/id/local-authority/12UE,Huntingdonshire District Council,12/06/2017,12/06/2017,211409,268968I,13.21,A C COMMERCIALS,CR000141,Fleet Management,Vehicle Oil & Lubricants,626
http://statistics.data.gov.uk/id/local-authority/12UE,Huntingdonshire District Council,12/06/2017,12/06/2017,211409,268968I,151.77,A C COMMERCIALS,CR000141,Grounds Maintenance,Vehicle Oil & Lubricants,626
http://statistics.data.gov.uk/id/local-authority/12UE,Huntingdonshire District Council,12/06/2017,12/06/2017,211409,268968I,98.98,A C COMMERCIALS,CR000141,Recycling,Vehicle Oil & Lubricants,626
http://statistics.data.gov.uk/id/local-authority/12UE,Huntingdonshire District Council,12/06/2017,12/06/2017,211409,268968I,164.98,A C COMMERCIALS,CR000141,Street Cleaning,Vehicle Oil & Lubricants,626
http://statistics.data.gov.uk/id/local-authority/12UE,Huntingdonshire District Council,07/06/2017,07/06/2017,211065,406689,658,SMI GROUP,CR423139,Domestic Refuse,Protective Clothing & Uniforms,163
http://statistics.data.gov.uk/id/local-authority/12UE,Huntingdonshire District Council,30/06/2017,30/06/2017,212440,3718620,657.22,ANGEL SPRINGS LTD,CR423581,One Leisure Huntingdon,Equipment Hire,507
http://statistics.data.gov.uk/id/local-authority/12UE,Huntingdonshire District Council,28/06/2017,28/06/2017,212302,COURCE C2,645,LGG LEGAL TRAINING LTD,CR401720,Human Resources,Training,130
http://statistics.data.gov.uk/id/local-authority/12UE,Huntingdonshire District Council,30/06/2017,30/06/2017,212605,1131773307,640.88,KONICA MINOLTA,CR478866,One Leisure St Ives,Equipment,500
http://statistics.data.gov.uk/id/local-authority/12UE,Huntingdonshire District Council,21/06/2017,22/06/2017,211187,27975,634.79,STERLING HYDROTECH LTD,CR422914,Leisure Centres Capital,Building Mtce,303
http://statistics.data.gov.uk/id/local-authority/12UE,Huntingdonshire District Council,07/06/2017,07/06/2017,210957,90202954,633.36,G4S SECURE SOLUTIONS (UK) LTD,CR454030,One Leisure Sawtry,Fire & Security,450
http://statistics.data.gov.uk/id/local-authority/12UE,Huntingdonshire District Council,27/06/2017,28/06/2017,211854,90205654,633.36,G4S SECURE SOLUTIONS (UK) LTD,CR454030,One Leisure St Neots,Fire & Security,450
http://statistics.data.gov.uk/id/local-authority/12UE,Huntingdonshire District Council,27/06/2017,28/06/2017,211858,90205655,633.36,G4S SECURE SOLUTIONS (UK) LTD,CR454030,One Leisure St Neots,Fire & Security,450
http://statistics.data.gov.uk/id/local-authority/12UE,Huntingdonshire District Council,12/06/2017,14/06/2017,210794,8035,625,AIR MONITORS LTD,CR480691,Air Quality,Equipment Maintenance,511
http://statistics.data.gov.uk/id/local-authority/12UE,Huntingdonshire District Council,01/06/2017,08/06/2017,210806,SIN083807,622.05,QUADRANT SECURITY GROUP,CR027775,Cctv Shared Service,Equipment Maintenance,511
http://statistics.data.gov.uk/id/local-authority/12UE,Huntingdonshire District Council,21/06/2017,22/06/2017,211990,667825,588.49,LACONS,CR422174,One Leisure St Ives,Bar Provisions,558
http://statistics.data.gov.uk/id/local-authority/12UE,Huntingdonshire District Council,21/06/2017,22/06/2017,211990,667825,30.96,LACONS,CR422174,One Leisure St Ives,Gas Cylinders (Incl. Bars),567
http://statistics.data.gov.uk/id/local-authority/12UE,Huntingdonshire District Council,09/06/2017,09/06/2017,211392,561909,609.73,ECOCLEEN SERVICES LIMITED,CR406985,Public Conveniences,Building Cleaning,440
http://statistics.data.gov.uk/id/local-authority/12UE,Huntingdonshire District Council,07/06/2017,07/06/2017,211060,EC1702,600,UKOS PROJECTS LTD,CR423164,Homelessness Management,Bed & Breakfast Payment,818
http://statistics.data.gov.uk/id/local-authority/12UE,Huntingdonshire District Council,29/06/2017,29/06/2017,212422,52340,590,LUCION ENVIRONMENTAL LTD,CR424646,Leisure Centres Capital,Building Mtce,303
http://statistics.data.gov.uk/id/local-authority/12UE,Huntingdonshire District Council,07/06/2017,07/06/2017,210766,707385,589.7,METRO ROD LTD,CR479927,One Leisure St Ives,Building Mtce,303
http://statistics.data.gov.uk/id/local-authority/12UE,Huntingdonshire District Council,02/06/2017,02/06/2017,210813,908287,7.12,KING BROS,CR411339,Countryside,Cleaning Materials,443
http://statistics.data.gov.uk/id/local-authority/12UE,Huntingdonshire District Council,02/06/2017,02/06/2017,210813,908287,580.46,KING BROS,CR411339,Countryside,Catering Materials,559
http://statistics.data.gov.uk/id/local-authority/12UE,Huntingdonshire District Council,12/06/2017,14/06/2017,211487,512865,587.25,DATA SOLUTIONS T/A RESTORE DATASHRED,CR480152,E F H And Depots,Shredding,773
http://statistics.data.gov.uk/id/local-authority/12UE,Huntingdonshire District Council,21/06/2017,21/06/2017,212017,35227,586.96,MEYER SCOTT RECRUITMENT LIMITED,CR422369,Customer Service Centres,Hired Staff,100
http://statistics.data.gov.uk/id/local-authority/12UE,Huntingdonshire District Council,01/06/2017,01/06/2017,210779,44081,585,DAL-ROD (CAMRIDGESHIRE),CR413675,E F H And Depots,Building Mtce,303
http://statistics.data.gov.uk/id/local-authority/12UE,Huntingdonshire District Council,12/06/2017,12/06/2017,211463,241,581.26,DMS HOME IMPROVEMENTS & ELECTRICAL,CR479202,Parks & Open Spaces,Building Mtce,303
http://statistics.data.gov.uk/id/local-authority/12UE,Huntingdonshire District Council,16/06/2017,16/06/2017,211876,194364,579.8,CAMBRIDGE CITY COUNCIL,CR017896,Central Services M Us,Legal Fees,729
http://statistics.data.gov.uk/id/local-authority/12UE,Huntingdonshire District Council,07/06/2017,07/06/2017,209888,DE11038507,404.56,DENNIS EAGLE LTD,CR000200,Domestic Refuse,Vehicle Parts & Fittings,625
http://statistics.data.gov.uk/id/local-authority/12UE,Huntingdonshire District Council,07/06/2017,07/06/2017,209888,DE11038507,173.39,DENNIS EAGLE LTD,CR000200,Recycling,Vehicle Parts & Fittings,625
http://statistics.data.gov.uk/id/local-authority/12UE,Huntingdonshire District Council,14/06/2017,14/06/2017,211439,64966296,563.14,PHS GROUP LTD,CR032018,One Leisure St Neots,Equipment Hire,507
http://statistics.data.gov.uk/id/local-authority/12UE,Huntingdonshire District Council,07/06/2017,07/06/2017,209549,1574,560,HD PROPERTY SERVICES,CR422148,Improvement Grants,Shared Service Savings,798
http://statistics.data.gov.uk/id/local-authority/12UE,Huntingdonshire District Council,21/06/2017,22/06/2017,211653,AGM 0000059236,559.5,AGM PLC,CR424795,One Leisure St Ives,Building Mtce,303
http://statistics.data.gov.uk/id/local-authority/12UE,Huntingdonshire District Council,27/06/2017,28/06/2017,211697,428242,557.14,HEASELL ELECTROMECHANICAL SERVICES LTD,CR422407,Leisure Centres Capital,Building Mtce,303
http://statistics.data.gov.uk/id/local-authority/12UE,Huntingdonshire District Council,09/06/2017,09/06/2017,211402,154630,554,GREEN-TECH,CR401735,Countryside,Materials,550
http://statistics.data.gov.uk/id/local-authority/12UE,Huntingdonshire District Council,09/06/2017,09/06/2017,211386,DE11042254,543.98,DENNIS EAGLE LTD,CR000200,Domestic Refuse,Vehicle Parts & Fittings,625
http://statistics.data.gov.uk/id/local-authority/12UE,Huntingdonshire District Council,30/06/2017,30/06/2017,212237,428245,543.91,HEASELL ELECTROMECHANICAL SERVICES LTD,CR422407,One Leisure St Ives,Building Mtce,303
http://statistics.data.gov.uk/id/local-authority/12UE,Huntingdonshire District Council,27/06/2017,28/06/2017,211908,62302,536.48,MASKEARAID LTD,CR033423,One Leisure St Neots,Cleaning Materials,443
http://statistics.data.gov.uk/id/local-authority/12UE,Huntingdonshire District Council,07/06/2017,07/06/2017,211099,909102,6.6,KING BROS,CR411339,Countryside,Cleaning Materials,443
http://statistics.data.gov.uk/id/local-authority/12UE,Huntingdonshire District Council,07/06/2017,07/06/2017,211099,909102,525.34,KING BROS,CR411339,Countryside,Catering Materials,559
http://statistics.data.gov.uk/id/local-authority/12UE,Huntingdonshire District Council,29/06/2017,29/06/2017,212251,669052,525.84,LACONS,CR422174,One Leisure St Ives,Bar Provisions,558
http://statistics.data.gov.uk/id/local-authority/12UE,Huntingdonshire District Council,22/06/2017,22/06/2017,211528,IN0602606,523.93,STAFFLINE GROUP,CR416827,Recycling,Hired Staff,100
http://statistics.data.gov.uk/id/local-authority/12UE,Huntingdonshire District Council,21/06/2017,21/06/2017,211982,8765861,509.82,PREMIER PAPER GROUP LTD,CR424769,Document Centre,Paper,562
http://statistics.data.gov.uk/id/local-authority/12UE,Huntingdonshire District Council,14/06/2017,14/06/2017,211199,180956,500,PRP CONSULTING,CR424006,Leisure Centres Capital,Building Mtce,303
http://statistics.data.gov.uk/id/local-authority/12UE,Huntingdonshire District Council,14/06/2017,14/06/2017,211431,82727547,496.33,ARCHANT HERTS & CAMBS,CR415764,One Leisure St Ives,Advertising/Promoting Services,255
http://statistics.data.gov.uk/id/local-authority/12UE,Huntingdonshire District Council,21/06/2017,22/06/2017,211873,44302,490,DAL-ROD UK LTD,CR002782,One Leisure St Neots,Building Mtce,303
http://statistics.data.gov.uk/id/local-authority/12UE,Huntingdonshire District Council,29/06/2017,29/06/2017,212235,INV088125,79.71,SLUSH PUPPIE LTD,CR455958,One Leisure St Ives,Materials,550
http://statistics.data.gov.uk/id/local-authority/12UE,Huntingdonshire District Council,29/06/2017,29/06/2017,212235,INV088125,409.86,SLUSH PUPPIE LTD,CR455958,One Leisure St Ives,Catering Materials,559
http://statistics.data.gov.uk/id/local-authority/12UE,Huntingdonshire District Council,22/06/2017,22/06/2017,211521,IN0601268,488.03,STAFFLINE GROUP,CR416827,Recycling,Hired Staff,100
http://statistics.data.gov.uk/id/local-authority/12UE,Huntingdonshire District Council,09/06/2017,09/06/2017,211389,6649,486,D & H SIGN & DISPLAY SERVICES,CR030353,Domestic Refuse,Vehicle Parts & Fittings,625
http://statistics.data.gov.uk/id/local-authority/12UE,Huntingdonshire District Council,07/06/2017,07/06/2017,210757,931708/08.05.17,480.5,COMPLETE BOWLING SERVICES LTD,CR424631,One Leisure St Ives,Building Mtce,303
http://statistics.data.gov.uk/id/local-authority/12UE,Huntingdonshire District Council,07/06/2017,07/06/2017,210760,17581,120,BIGPRINTING,CR416383,One Leisure Huntingdon,Advertising/Promoting Services,255
http://statistics.data.gov.uk/id/local-authority/12UE,Huntingdonshire District Council,07/06/2017,07/06/2017,210760,17581,60,BIGPRINTING,CR416383,One Leisure Ramsey,Advertising/Promoting Services,255
http://statistics.data.gov.uk/id/local-authority/12UE,Huntingdonshire District Council,07/06/2017,07/06/2017,210760,17581,60,BIGPRINTING,CR416383,One Leisure Sawtry,Advertising/Promoting Services,255
http://statistics.data.gov.uk/id/local-authority/12UE,Huntingdonshire District Council,07/06/2017,07/06/2017,210760,17581,120,BIGPRINTING,CR416383,One Leisure St Ives,Advertising/Promoting Services,255
http://statistics.data.gov.uk/id/local-authority/12UE,Huntingdonshire District Council,07/06/2017,07/06/2017,210760,17581,120,BIGPRINTING,CR416383,One Leisure St Neots,Advertising/Promoting Services,255
http://statistics.data.gov.uk/id/local-authority/12UE,Huntingdonshire District Council,01/06/2017,08/06/2017,210951,INV3044,479.16,PDS SOUND & LIGHTING LTD,CR422672,Dc Application Processing,Equipment Hire,507
http://statistics.data.gov.uk/id/local-authority/12UE,Huntingdonshire District Council,02/06/2017,02/06/2017,210985,1705/10814,476,GULLIVERS TRUCK HIRE LTD,CR477663,Domestic Refuse,Vehicle Hire,607
http://statistics.data.gov.uk/id/local-authority/12UE,Huntingdonshire District Council,07/06/2017,07/06/2017,210950,31440,475,BRIDGE FIBRE LIMITED,CR424041,One Leisure Corporate Mgt,Building Mtce,303
http://statistics.data.gov.uk/id/local-authority/12UE,Huntingdonshire District Council,20/06/2017,20/06/2017,211934,172470,254.52,HUNTINGDON TIMBER SUPPLIES,CR482513,Countryside,Materials,550
http://statistics.data.gov.uk/id/local-authority/12UE,Huntingdonshire District Council,20/06/2017,20/06/2017,211934,172470,219.2,HUNTINGDON TIMBER SUPPLIES,CR482513,Watercourses,Sitework,359
http://statistics.data.gov.uk/id/local-authority/12UE,Huntingdonshire District Council,15/06/2017,15/06/2017,211848,12489088970,470.52,E-ON ENERGY,CR416430,One Leisure Huntingdon,Gas,421
http://statistics.data.gov.uk/id/local-authority/12UE,Huntingdonshire District Council,01/06/2017,01/06/2017,210782,276538,462.13,FIRST RECRUITMENT GROUP LTD,CR424012,Financial Services Mus,Hired Staff,100
http://statistics.data.gov.uk/id/local-authority/12UE,Huntingdonshire District Council,21/06/2017,21/06/2017,211647,4539,461.5,NOVUS COMPLIANCE SERVICES LTD,CR423524,One Leisure St Neots,Building Mtce,303
http://statistics.data.gov.uk/id/local-authority/12UE,Huntingdonshire District Council,14/06/2017,14/06/2017,210741,664365,461.35,LACONS,CR422174,One Leisure St Ives,Bar Provisions,558
http://statistics.data.gov.uk/id/local-authority/12UE,Huntingdonshire District Council,05/06/2017,08/06/2017,211121,5247,455,ADAMS AUTOS,CR422066,Licences,Vehicle Inspection,618
http://statistics.data.gov.uk/id/local-authority/12UE,Huntingdonshire District Council,12/06/2017,14/06/2017,211492,58002626,450.63,MARSHALL MOTOR GROUP LTD,CR009641,Domestic Refuse,Vehicle Parts & Fittings,625
http://statistics.data.gov.uk/id/local-authority/12UE,Huntingdonshire District Council,14/06/2017,14/06/2017,211607,2156B,450,LUCAS MANAGEMENT,CR422009,One Leisure St Ives,Entertainments Inc Cable Tv,744
http://statistics.data.gov.uk/id/local-authority/12UE,Huntingdonshire District Council,15/06/2017,15/06/2017,211847,12489089510,449.35,E-ON ENERGY,CR416430,One Leisure St Ives,Gas,421
http://statistics.data.gov.uk/id/local-authority/12UE,Huntingdonshire District Council,07/06/2017,07/06/2017,211059,81050,446.21,SNACKLINE DIRECT LTD,CR478090,One Leisure Huntingdon,Vending Materials,560
http://statistics.data.gov.uk/id/local-authority/12UE,Huntingdonshire District Council,07/06/2017,07/06/2017,211117,384/744,437.5,JAZ YORKS LTD,CR160753,Homelessness Management,Bed & Breakfast Payment,818
http://statistics.data.gov.uk/id/local-authority/12UE,Huntingdonshire District Council,07/06/2017,07/06/2017,211118,384/741,437.5,JAZ YORKS LTD,CR160753,Homelessness Management,Bed & Breakfast Payment,818
http://statistics.data.gov.uk/id/local-authority/12UE,Huntingdonshire District Council,14/06/2017,14/06/2017,211612,384/747,437.5,JAZ YORKS LTD,CR160753,Homelessness Management,Bed & Breakfast Payment,818
http://statistics.data.gov.uk/id/local-authority/12UE,Huntingdonshire District Council,14/06/2017,14/06/2017,211616,384/750,437.5,JAZ YORKS LTD,CR160753,Homelessness Management,Bed & Breakfast Payment,818
http://statistics.data.gov.uk/id/local-authority/12UE,Huntingdonshire District Council,20/06/2017,20/06/2017,211940,384/756,437.5,JAZ YORKS LTD,CR160753,Homelessness Management,Bed & Breakfast Payment,818
http://statistics.data.gov.uk/id/local-authority/12UE,Huntingdonshire District Council,20/06/2017,20/06/2017,211942,384/753,437.5,JAZ YORKS LTD,CR160753,Homelessness Management,Bed & Breakfast Payment,818
http://statistics.data.gov.uk/id/local-authority/12UE,Huntingdonshire District Council,06/06/2017,06/06/2017,211046,277328,437.15,FIRST RECRUITMENT GROUP LTD,CR424012,Financial Services Mus,Hired Staff,100
http://statistics.data.gov.uk/id/local-authority/12UE,Huntingdonshire District Council,20/06/2017,20/06/2017,211919,561622,434.69,ECOCLEEN SERVICES LIMITED,CR406985,Countryside,Cleaning Materials,443
http://statistics.data.gov.uk/id/local-authority/12UE,Huntingdonshire District Council,01/06/2017,01/06/2017,210665,600007169,432,EDF ENERGY CUSTOMER FIELD SERVICES,CR477611,Pathfinder House Site,Electricity,420
http://statistics.data.gov.uk/id/local-authority/12UE,Huntingdonshire District Council,14/06/2017,14/06/2017,211360,GW17004,425,GRAFHAM WATER CENTRE,CR416894,One Leisure Active Lifestyles,Instructors/Tutors,720
http://statistics.data.gov.uk/id/local-authority/12UE,Huntingdonshire District Council,21/06/2017,22/06/2017,211656,I166251,425,OAKHAM ALES,CR422253,One Leisure St Ives,Bar Provisions,558
http://statistics.data.gov.uk/id/local-authority/12UE,Huntingdonshire District Council,01/06/2017,01/06/2017,210744,17233,52.5,ENVIROCURE LTD,CR424614,Countryside,Building Mtce,303
http://statistics.data.gov.uk/id/local-authority/12UE,Huntingdonshire District Council,01/06/2017,01/06/2017,210744,17233,17.5,ENVIROCURE LTD,CR424614,E F H And Depots,Building Mtce,303
http://statistics.data.gov.uk/id/local-authority/12UE,Huntingdonshire District Council,01/06/2017,01/06/2017,210744,17233,35,ENVIROCURE LTD,CR424614,One Leisure Huntingdon,Building Mtce,303
http://statistics.data.gov.uk/id/local-authority/12UE,Huntingdonshire District Council,01/06/2017,01/06/2017,210744,17233,35,ENVIROCURE LTD,CR424614,One Leisure Ramsey,Building Mtce,303
http://statistics.data.gov.uk/id/local-authority/12UE,Huntingdonshire District Council,01/06/2017,01/06/2017,210744,17233,35,ENVIROCURE LTD,CR424614,One Leisure Sawtry,Building Mtce,303
http://statistics.data.gov.uk/id/local-authority/12UE,Huntingdonshire District Council,01/06/2017,01/06/2017,210744,17233,70,ENVIROCURE LTD,CR424614,One Leisure St Ives,Building Mtce,303
http://statistics.data.gov.uk/id/local-authority/12UE,Huntingdonshire District Council,01/06/2017,01/06/2017,210744,17233,52.5,ENVIROCURE LTD,CR424614,One Leisure St Neots,Building Mtce,303
http://statistics.data.gov.uk/id/local-authority/12UE,Huntingdonshire District Council,01/06/2017,01/06/2017,210744,17233,17.5,ENVIROCURE LTD,CR424614,Parks & Open Spaces,Building Mtce,303
http://statistics.data.gov.uk/id/local-authority/12UE,Huntingdonshire District Council,01/06/2017,01/06/2017,210744,17233,52.5,ENVIROCURE LTD,CR424614,Parks & Open Spaces,Building Mtce,303
http://statistics.data.gov.uk/id/local-authority/12UE,Huntingdonshire District Council,01/06/2017,01/06/2017,210744,17233,52.5,ENVIROCURE LTD,CR424614,Pathfinder House Site,Building Mtce,303
http://statistics.data.gov.uk/id/local-authority/12UE,Huntingdonshire District Council,20/06/2017,20/06/2017,211953,17387,52.5,ENVIROCURE LTD,CR424614,Countryside,Building Mtce,303
http://statistics.data.gov.uk/id/local-authority/12UE,Huntingdonshire District Council,20/06/2017,20/06/2017,211953,17387,17.5,ENVIROCURE LTD,CR424614,E F H And Depots,Building Mtce,303
http://statistics.data.gov.uk/id/local-authority/12UE,Huntingdonshire District Council,20/06/2017,20/06/2017,211953,17387,35,ENVIROCURE LTD,CR424614,One Leisure Huntingdon,Building Mtce,303
http://statistics.data.gov.uk/id/local-authority/12UE,Huntingdonshire District Council,20/06/2017,20/06/2017,211953,17387,35,ENVIROCURE LTD,CR424614,One Leisure Ramsey,Building Mtce,303
http://statistics.data.gov.uk/id/local-authority/12UE,Huntingdonshire District Council,20/06/2017,20/06/2017,211953,17387,35,ENVIROCURE LTD,CR424614,One Leisure Sawtry,Building Mtce,303
http://statistics.data.gov.uk/id/local-authority/12UE,Huntingdonshire District Council,20/06/2017,20/06/2017,211953,17387,70,ENVIROCURE LTD,CR424614,One Leisure St Ives,Building Mtce,303
http://statistics.data.gov.uk/id/local-authority/12UE,Huntingdonshire District Council,20/06/2017,20/06/2017,211953,17387,52.5,ENVIROCURE LTD,CR424614,One Leisure St Neots,Building Mtce,303
http://statistics.data.gov.uk/id/local-authority/12UE,Huntingdonshire District Council,20/06/2017,20/06/2017,211953,17387,52.5,ENVIROCURE LTD,CR424614,Parks & Open Spaces,Building Mtce,303
http://statistics.data.gov.uk/id/local-authority/12UE,Huntingdonshire District Council,20/06/2017,20/06/2017,211953,17387,17.5,ENVIROCURE LTD,CR424614,Parks & Open Spaces,Building Mtce,303
http://statistics.data.gov.uk/id/local-authority/12UE,Huntingdonshire District Council,20/06/2017,20/06/2017,211953,17387,52.5,ENVIROCURE LTD,CR424614,Pathfinder House Site,Building Mtce,303
http://statistics.data.gov.uk/id/local-authority/12UE,Huntingdonshire District Council,02/06/2017,02/06/2017,210974,4000004758,417.73,1ST CHOICE RECRUITMENT,CR416849,Environmental Management,Hired Staff,100
http://statistics.data.gov.uk/id/local-authority/12UE,Huntingdonshire District Council,07/06/2017,07/06/2017,211089,4000004785,417.73,1ST CHOICE RECRUITMENT,CR416849,Environmental Management,Hired Staff,100
http://statistics.data.gov.uk/id/local-authority/12UE,Huntingdonshire District Council,21/06/2017,21/06/2017,212008,4000004876,417.73,1ST CHOICE RECRUITMENT,CR416849,Environmental Management,Hired Staff,100
http://statistics.data.gov.uk/id/local-authority/12UE,Huntingdonshire District Council,07/06/2017,07/06/2017,210815,INV-0068,104.17,WAMO SPORTS LTD,CR423559,One Leisure Huntingdon,Licences,730
http://statistics.data.gov.uk/id/local-authority/12UE,Huntingdonshire District Council,07/06/2017,07/06/2017,210815,INV-0068,52.08,WAMO SPORTS LTD,CR423559,One Leisure Ramsey,Licences,730
http://statistics.data.gov.uk/id/local-authority/12UE,Huntingdonshire District Council,07/06/2017,07/06/2017,210815,INV-0068,52.08,WAMO SPORTS LTD,CR423559,One Leisure Sawtry,Licences,730
http://statistics.data.gov.uk/id/local-authority/12UE,Huntingdonshire District Council,07/06/2017,07/06/2017,210815,INV-0068,104.17,WAMO SPORTS LTD,CR423559,One Leisure St Ives,Licences,730
http://statistics.data.gov.uk/id/local-authority/12UE,Huntingdonshire District Council,07/06/2017,07/06/2017,210815,INV-0068,104.17,WAMO SPORTS LTD,CR423559,One Leisure St Neots,Licences,730
http://statistics.data.gov.uk/id/local-authority/12UE,Huntingdonshire District Council,12/06/2017,12/06/2017,211472,311226373,412.72,SWALEC,CR407130,Countryside,Electricity,420
http://statistics.data.gov.uk/id/local-authority/12UE,Huntingdonshire District Council,01/06/2017,01/06/2017,210788,S210591,410,CIPFA BUSINESS LIMITED,CR480088,Chief Executive & Comt,Professional Subscriptions,755
http://statistics.data.gov.uk/id/local-authority/12UE,Huntingdonshire District Council,13/06/2017,13/06/2017,211558,5866,401.71,HUNTS FORUM OF VOLUNTARY ORGANISATIONS,CR030582,Commercial Properties,Building Mtce,303
http://statistics.data.gov.uk/id/local-authority/12UE,Huntingdonshire District Council,30/06/2017,30/06/2017,212430,10468667,400.41,LUCOZADE RIBENA SUNTORY LTD,CR422660,One Leisure St Neots,Vending Materials,560
http://statistics.data.gov.uk/id/local-authority/12UE,Huntingdonshire District Council,27/06/2017,28/06/2017,211895,28618,400,GENESIS  LIFTS LTD,CR478241,Human Resources,Training,130
http://statistics.data.gov.uk/id/local-authority/12UE,Huntingdonshire District Council,30/06/2017,30/06/2017,212446,7325,397.5,THE POOL & SPA SPECIALISTS LTD,CR424623,One Leisure St Ives,Building Mtce,303
http://statistics.data.gov.uk/id/local-authority/12UE,Huntingdonshire District Council,14/06/2017,14/06/2017,211428,666697,345.85,LACONS,CR422174,One Leisure St Ives,Bar Provisions,558
http://statistics.data.gov.uk/id/local-authority/12UE,Huntingdonshire District Council,14/06/2017,14/06/2017,211428,666697,48,LACONS,CR422174,One Leisure St Ives,Gas Cylinders (Incl. Bars),567
http://statistics.data.gov.uk/id/local-authority/12UE,Huntingdonshire District Council,20/06/2017,20/06/2017,211955,25256,393.3,B S GRAVES ELECTRICAL LTD,CR003146,Parks & Open Spaces,Building Mtce,303
http://statistics.data.gov.uk/id/local-authority/12UE,Huntingdonshire District Council,29/06/2017,29/06/2017,212238,428264,391,HEASELL ELECTROMECHANICAL SERVICES LTD,CR422407,Leisure Centres Capital,Building Mtce,303
http://statistics.data.gov.uk/id/local-authority/12UE,Huntingdonshire District Council,09/06/2017,09/06/2017,211387,303879,381.6,DENNIS EAGLE LTD,CR000200,Domestic Refuse,Vehicle Parts & Fittings,625
http://statistics.data.gov.uk/id/local-authority/12UE,Huntingdonshire District Council,20/06/2017,20/06/2017,211638,6652,380,D & H SIGN & DISPLAY SERVICE,CR423430,Arboricultural Team,Vehicle Parts & Fittings,625
http://statistics.data.gov.uk/id/local-authority/12UE,Huntingdonshire District Council,14/06/2017,14/06/2017,211049,22087,378.58,STUART BROWN LTD,CR479796,Arboricultural Team,Vehicle Parts & Fittings,625
http://statistics.data.gov.uk/id/local-authority/12UE,Huntingdonshire District Council,14/06/2017,14/06/2017,211435,316652,40.12,SOUTH LINCS FOOD SERVICE,CR033415,One Leisure St Ives,Bar Provisions,558
http://statistics.data.gov.uk/id/local-authority/12UE,Huntingdonshire District Council,14/06/2017,14/06/2017,211435,316652,241.81,SOUTH LINCS FOOD SERVICE,CR033415,One Leisure St Ives,Catering Materials,559
http://statistics.data.gov.uk/id/local-authority/12UE,Huntingdonshire District Council,14/06/2017,14/06/2017,211435,316652,95.26,SOUTH LINCS FOOD SERVICE,CR033415,One Leisure St Ives,Confectionery,572
http://statistics.data.gov.uk/id/local-authority/12UE,Huntingdonshire District Council,15/06/2017,15/06/2017,211665,125181,374,IT TALENT SOLUTIONS LTD,CR482676,Imd Shared Service,Hired Staff,100
http://statistics.data.gov.uk/id/local-authority/12UE,Huntingdonshire District Council,14/06/2017,14/06/2017,211587,277939,368.46,FIRST RECRUITMENT GROUP LTD,CR424012,Financial Services Mus,Hired Staff,100
http://statistics.data.gov.uk/id/local-authority/12UE,Huntingdonshire District Council,01/06/2017,08/06/2017,210971,SIN83857,20,QUADRANT SECURITY GROUP,CR027775,Cctv Shared Service,Equipment Maintenance,511
http://statistics.data.gov.uk/id/local-authority/12UE,Huntingdonshire District Council,01/06/2017,08/06/2017,210971,SIN83857,346,QUADRANT SECURITY GROUP,CR027775,Cctv Shared Service,Equipment Maintenance,511
http://statistics.data.gov.uk/id/local-authority/12UE,Huntingdonshire District Council,12/06/2017,14/06/2017,211499,58002129,362.43,MARSHALL MOTOR GROUP LTD,CR009641,Street Cleaning,Vehicle Parts & Fittings,625
http://statistics.data.gov.uk/id/local-authority/12UE,Huntingdonshire District Council,02/06/2017,02/06/2017,210963,116254,360,CARE CHECK LTD,CR424746,Human Resources,Enquiries,723
http://statistics.data.gov.uk/id/local-authority/12UE,Huntingdonshire District Council,20/06/2017,20/06/2017,211922,600008197,360,EDF ENERGY CUSTOMER FIELD SERVICES,CR477611,One Leisure Huntingdon,Electricity,420
http://statistics.data.gov.uk/id/local-authority/12UE,Huntingdonshire District Council,14/06/2017,14/06/2017,211083,407352,359.94,SMI GROUP,CR423139,Grounds Maintenance,Protective Clothing & Uniforms,163
http://statistics.data.gov.uk/id/local-authority/12UE,Huntingdonshire District Council,21/06/2017,22/06/2017,211871,6400342,358.3,CHUBB FIRE AND SECURITY LTD,CR478924,One Leisure St Neots,Fire & Security,450
http://statistics.data.gov.uk/id/local-authority/12UE,Huntingdonshire District Council,21/06/2017,21/06/2017,211981,6916684,130.7,ANTALIS LTD,CR479468,Document Centre,Paper,562
http://statistics.data.gov.uk/id/local-authority/12UE,Huntingdonshire District Council,21/06/2017,21/06/2017,211981,6916684,90.54,ANTALIS LTD,CR479468,Document Centre,Paper,562
http://statistics.data.gov.uk/id/local-authority/12UE,Huntingdonshire District Council,21/06/2017,21/06/2017,211981,6916684,33.83,ANTALIS LTD,CR479468,Document Centre,Paper,562
http://statistics.data.gov.uk/id/local-authority/12UE,Huntingdonshire District Council,21/06/2017,21/06/2017,211981,6916684,55.74,ANTALIS LTD,CR479468,Document Centre,Paper,562
http://statistics.data.gov.uk/id/local-authority/12UE,Huntingdonshire District Council,21/06/2017,21/06/2017,211981,6916684,46.9,ANTALIS LTD,CR479468,Document Centre,Paper,562
http://statistics.data.gov.uk/id/local-authority/12UE,Huntingdonshire District Council,07/06/2017,07/06/2017,211092,18706,356,SPS PUMPS & ENGINEERING LTD,CR401392,Countryside,Equipment Maintenance,511
http://statistics.data.gov.uk/id/local-authority/12UE,Huntingdonshire District Council,29/06/2017,29/06/2017,210648,2103516651,76.62,BOOKER CASH AND CARRY,CR027611,One Leisure St Ives,Materials,550
http://statistics.data.gov.uk/id/local-authority/12UE,Huntingdonshire District Council,29/06/2017,29/06/2017,210648,2103516651,233.28,BOOKER CASH AND CARRY,CR027611,One Leisure St Ives,Bar Provisions,558
http://statistics.data.gov.uk/id/local-authority/12UE,Huntingdonshire District Council,29/06/2017,29/06/2017,210648,2103516651,21.87,BOOKER CASH AND CARRY,CR027611,One Leisure St Ives,Catering Materials,559
http://statistics.data.gov.uk/id/local-authority/12UE,Huntingdonshire District Council,29/06/2017,29/06/2017,210648,2103516651,22.14,BOOKER CASH AND CARRY,CR027611,One Leisure St Ives,Confectionery,572
http://statistics.data.gov.uk/id/local-authority/12UE,Huntingdonshire District Council,07/06/2017,07/06/2017,211018,665322,352.45,LACONS,CR422174,One Leisure St Ives,Bar Provisions,558
http://statistics.data.gov.uk/id/local-authority/12UE,Huntingdonshire District Council,07/06/2017,07/06/2017,211096,2103536949,352.01,BOOKER CASH AND CARRY,CR027611,Countryside,Catering Materials,559
http://statistics.data.gov.uk/id/local-authority/12UE,Huntingdonshire District Council,07/06/2017,08/06/2017,211128,125143,352,IT TALENT SOLUTIONS LTD,CR482676,Imd Shared Service,Hired Staff,100
http://statistics.data.gov.uk/id/local-authority/12UE,Huntingdonshire District Council,01/06/2017,01/06/2017,209997,102781,350,RED FORGE LTD,CR405690,Domestic Refuse,Vehicle Maintenance External,619
http://statistics.data.gov.uk/id/local-authority/12UE,Huntingdonshire District Council,01/06/2017,01/06/2017,210787,114433,350,BARTON PETROLEUM,CR409205,Stock And Work In Progress,Stock Purchases,980
http://statistics.data.gov.uk/id/local-authority/12UE,Huntingdonshire District Council,12/06/2017,12/06/2017,211446,113344,350,BARTON PETROLEUM,CR409205,Stock And Work In Progress,Stock Purchases,980
http://statistics.data.gov.uk/id/local-authority/12UE,Huntingdonshire District Council,15/06/2017,15/06/2017,211690,479502,57.6,BYTES SOFTWARE SERVICES LTD,CR455210,Imd Shared Service,Software,206
http://statistics.data.gov.uk/id/local-authority/12UE,Huntingdonshire District Council,15/06/2017,15/06/2017,211690,479502,292.06,BYTES SOFTWARE SERVICES LTD,CR455210,Imd Shared Service,Software,206
http://statistics.data.gov.uk/id/local-authority/12UE,Huntingdonshire District Council,21/06/2017,22/06/2017,211859,16,348,RICHARD SISTROM PAINTING & DECORATING,CR422887,Leisure Centres Capital,Building Mtce,303
http://statistics.data.gov.uk/id/local-authority/12UE,Huntingdonshire District Council,23/06/2017,29/06/2017,212383,SIN084048,348,QUADRANT SECURITY GROUP,CR027775,Cctv Shared Service,Equipment Maintenance,511
http://statistics.data.gov.uk/id/local-authority/12UE,Huntingdonshire District Council,21/06/2017,21/06/2017,212009,98354,346,SABER DAYNES,CR424110,Planning M U'S,Furniture,200
http://statistics.data.gov.uk/id/local-authority/12UE,Huntingdonshire District Council,02/06/2017,02/06/2017,210976,4000004757,344.35,1ST CHOICE RECRUITMENT,CR416849,Environmental Management,Hired Staff,100
http://statistics.data.gov.uk/id/local-authority/12UE,Huntingdonshire District Council,07/06/2017,07/06/2017,210754,9793,343,ROGER WILSON ELECTRONICS,CR028041,One Leisure St Ives,Building Mtce,303
http://statistics.data.gov.uk/id/local-authority/12UE,Huntingdonshire District Council,22/06/2017,22/06/2017,612799,22,342,HEALES MEDICAL LTD,CR477639,Human Resources,Medical Fees,734
http://statistics.data.gov.uk/id/local-authority/12UE,Huntingdonshire District Council,21/06/2017,22/06/2017,211987,761129,340.31,BEN BURGESS & COMPANY,CR453903,One Leisure St Ives,Vehicle Maintenance External,619
http://statistics.data.gov.uk/id/local-authority/12UE,Huntingdonshire District Council,01/06/2017,01/06/2017,210711,1705/03718,340,GULLIVERS TRUCK HIRE LTD,CR477663,Domestic Refuse,Vehicle Hire,607
http://statistics.data.gov.uk/id/local-authority/12UE,Huntingdonshire District Council,12/06/2017,12/06/2017,211449,1705/11260,340,GULLIVERS TRUCK HIRE LTD,CR477663,Domestic Refuse,Vehicle Hire,607
http://statistics.data.gov.uk/id/local-authority/12UE,Huntingdonshire District Council,21/06/2017,21/06/2017,212014,1706/18515,340,GULLIVERS TRUCK HIRE LTD,CR477663,Domestic Refuse,Vehicle Hire,607
http://statistics.data.gov.uk/id/local-authority/12UE,Huntingdonshire District Council,02/06/2017,02/06/2017,210977,4000004755,338.7,1ST CHOICE RECRUITMENT,CR416849,Grounds Maintenance,Hired Staff,100
http://statistics.data.gov.uk/id/local-authority/12UE,Huntingdonshire District Council,09/06/2017,09/06/2017,211051,4000004815,338.7,1ST CHOICE RECRUITMENT,CR416849,Environmental Management,Hired Staff,100
http://statistics.data.gov.uk/id/local-authority/12UE,Huntingdonshire District Council,29/06/2017,29/06/2017,212239,428280,337.4,HEASELL ELECTROMECHANICAL SERVICES LTD,CR422407,Leisure Centres Capital,Building Mtce,303
http://statistics.data.gov.uk/id/local-authority/12UE,Huntingdonshire District Council,20/06/2017,20/06/2017,211925,323854,335,FRONTIER AGRICULTURAL LTD,CR122555,Countryside,Plants And Seeds,556
http://statistics.data.gov.uk/id/local-authority/12UE,Huntingdonshire District Council,01/06/2017,01/06/2017,210299,DE11040182,334.76,DENNIS EAGLE LTD,CR000200,Domestic Refuse,Vehicle Parts & Fittings,625
http://statistics.data.gov.uk/id/local-authority/12UE,Huntingdonshire District Council,27/06/2017,28/06/2017,208850,SI389936-1,334,RLSS DIRECT,CR401615,One Leisure Sawtry,Materials,550
http://statistics.data.gov.uk/id/local-authority/12UE,Huntingdonshire District Council,14/06/2017,14/06/2017,211544,4000004843,333.06,1ST CHOICE RECRUITMENT,CR416849,Environmental Management,Hired Staff,100
http://statistics.data.gov.uk/id/local-authority/12UE,Huntingdonshire District Council,15/06/2017,15/06/2017,211701,228752,8.95,DIGITAL ID LIMITED,CR453985,Pathfinder House Site,Postage,231
http://statistics.data.gov.uk/id/local-authority/12UE,Huntingdonshire District Council,15/06/2017,15/06/2017,211701,228752,12,DIGITAL ID LIMITED,CR453985,Pathfinder House Site,Equipment,500
http://statistics.data.gov.uk/id/local-authority/12UE,Huntingdonshire District Council,15/06/2017,15/06/2017,211701,228752,23.99,DIGITAL ID LIMITED,CR453985,Pathfinder House Site,Equipment,500
http://statistics.data.gov.uk/id/local-authority/12UE,Huntingdonshire District Council,15/06/2017,15/06/2017,211701,228752,249.9,DIGITAL ID LIMITED,CR453985,Pathfinder House Site,Equipment,500
http://statistics.data.gov.uk/id/local-authority/12UE,Huntingdonshire District Council,15/06/2017,15/06/2017,211701,228752,37.99,DIGITAL ID LIMITED,CR453985,Pathfinder House Site,Equipment,500
http://statistics.data.gov.uk/id/local-authority/12UE,Huntingdonshire District Council,15/06/2017,20/06/2017,211695,INV1773075,332.47,INTERACTION RECRUITMENT PLC,CR007892,Cctv Shared Service,Hired Staff,100
http://statistics.data.gov.uk/id/local-authority/12UE,Huntingdonshire District Council,30/06/2017,30/06/2017,212614,81809,332.13,SNACKLINE DIRECT LTD,CR478090,One Leisure St Ives,Vending Materials,560
http://statistics.data.gov.uk/id/local-authority/12UE,Huntingdonshire District Council,14/06/2017,14/06/2017,211609,1195,331.25,THE CAMBRIDGE CHAIR COVER COMPANY LTD,CR455385,One Leisure St Ives,Equipment Hire,507
http://statistics.data.gov.uk/id/local-authority/12UE,Huntingdonshire District Council,14/06/2017,14/06/2017,211610,1196,331.25,THE CAMBRIDGE CHAIR COVER COMPANY LTD,CR455385,One Leisure St Ives,Equipment Hire,507
http://statistics.data.gov.uk/id/local-authority/12UE,Huntingdonshire District Council,07/06/2017,07/06/2017,211077,CD970493464,330.78,SHERRIFF AMENITY SERVICES,CR416316,One Leisure St Ives,Grounds Mtce Contractors,351
http://statistics.data.gov.uk/id/local-authority/12UE,Huntingdonshire District Council,02/06/2017,02/06/2017,210986,51044,327,HAGS-SMP LTD,CR455681,Parks & Open Spaces,Sitework,359
http://statistics.data.gov.uk/id/local-authority/12UE,Huntingdonshire District Council,14/06/2017,14/06/2017,211548,409617,324.98,SMI GROUP,CR423139,Street Cleaning,Protective Clothing & Uniforms,163
http://statistics.data.gov.uk/id/local-authority/12UE,Huntingdonshire District Council,12/06/2017,14/06/2017,211486,SI222013,324.12,KOMPAN LTD,CR405497,Parks & Open Spaces,Playground Equipment,360
http://statistics.data.gov.uk/id/local-authority/12UE,Huntingdonshire District Council,07/06/2017,07/06/2017,209871,DE11038160,323.92,DENNIS EAGLE LTD,CR000200,Recycling,Vehicle Parts & Fittings,625
http://statistics.data.gov.uk/id/local-authority/12UE,Huntingdonshire District Council,07/06/2017,14/06/2017,211364,79989,323.2,SNACKLINE DIRECT LTD,CR478090,One Leisure St Neots,Vending Materials,560
http://statistics.data.gov.uk/id/local-authority/12UE,Huntingdonshire District Council,01/06/2017,01/06/2017,209857,86926,321,FRANK RATCLIFFE & SON,CR007546,Domestic Refuse,Vehicle Maintenance External,619
http://statistics.data.gov.uk/id/local-authority/12UE,Huntingdonshire District Council,07/06/2017,07/06/2017,211113,384/746,320.84,JAZ YORKS LTD,CR160753,Homelessness Management,Bed & Breakfast Payment,818
http://statistics.data.gov.uk/id/local-authority/12UE,Huntingdonshire District Council,07/06/2017,07/06/2017,211114,384/743,320.84,JAZ YORKS LTD,CR160753,Homelessness Management,Bed & Breakfast Payment,818
http://statistics.data.gov.uk/id/local-authority/12UE,Huntingdonshire District Council,14/06/2017,14/06/2017,211615,384/749,320.84,JAZ YORKS LTD,CR160753,Homelessness Management,Bed & Breakfast Payment,818
http://statistics.data.gov.uk/id/local-authority/12UE,Huntingdonshire District Council,14/06/2017,14/06/2017,211618,384/752,320.84,JAZ YORKS LTD,CR160753,Homelessness Management,Bed & Breakfast Payment,818
http://statistics.data.gov.uk/id/local-authority/12UE,Huntingdonshire District Council,20/06/2017,20/06/2017,211941,384/759,320.84,JAZ YORKS LTD,CR160753,Homelessness Management,Bed & Breakfast Payment,818
http://statistics.data.gov.uk/id/local-authority/12UE,Huntingdonshire District Council,20/06/2017,20/06/2017,211943,384/758,320.84,JAZ YORKS LTD,CR160753,Homelessness Management,Bed & Breakfast Payment,818
http://statistics.data.gov.uk/id/local-authority/12UE,Huntingdonshire District Council,20/06/2017,20/06/2017,211944,384/755,320.84,JAZ YORKS LTD,CR160753,Homelessness Management,Bed & Breakfast Payment,818
http://statistics.data.gov.uk/id/local-authority/12UE,Huntingdonshire District Council,08/06/2017,08/06/2017,211188,CD970059037,313,OMEGA RED GROUP,CR411029,One Leisure St Ives,Building Mtce,303
http://statistics.data.gov.uk/id/local-authority/12UE,Huntingdonshire District Council,29/06/2017,29/06/2017,211078,10452945,310.24,LUCOZADE RIBENA SUNTORY LTD,CR422660,One Leisure St Ives,Vending Materials,560
http://statistics.data.gov.uk/id/local-authority/12UE,Huntingdonshire District Council,12/06/2017,12/06/2017,211442,55782580,309.75,ARCHANT COMMUNITY MEDIA LTD,CR452143,Energy Efficiency,Advertising/Promoting Services,255
http://statistics.data.gov.uk/id/local-authority/12UE,Huntingdonshire District Council,14/06/2017,14/06/2017,211369,GM15331,308,GARNER MEDICAL LTD,CR003972,One Leisure St Ives,Equipment Maintenance,511
http://statistics.data.gov.uk/id/local-authority/12UE,Huntingdonshire District Council,21/06/2017,22/06/2017,211864,PO20152003,306.58,STANNAH LIFTS,CR088939,One Leisure Ramsey,Plant & Equipment Maintenance,380
http://statistics.data.gov.uk/id/local-authority/12UE,Huntingdonshire District Council,29/06/2017,29/06/2017,212397,297416,18,WESTMINSTER FOODSERVICE,CR455156,One Leisure St Ives,Materials,550
http://statistics.data.gov.uk/id/local-authority/12UE,Huntingdonshire District Council,29/06/2017,29/06/2017,212397,297416,168.87,WESTMINSTER FOODSERVICE,CR455156,One Leisure St Ives,Bar Provisions,558
http://statistics.data.gov.uk/id/local-authority/12UE,Huntingdonshire District Council,29/06/2017,29/06/2017,212397,297416,116.19,WESTMINSTER FOODSERVICE,CR455156,One Leisure St Ives,Catering Materials,559
http://statistics.data.gov.uk/id/local-authority/12UE,Huntingdonshire District Council,07/06/2017,07/06/2017,210763,INV-5680,301.28,CFB LIMITED,CR480886,One Leisure Corporate Mgt,Advertising/Promoting Services,255
http://statistics.data.gov.uk/id/local-authority/12UE,Huntingdonshire District Council,07/06/2017,07/06/2017,210745,43574,300,LAYTONDINGS ENTERTAINMENT LTD,CR412228,One Leisure St Ives,Entertainments Inc Cable Tv,744
http://statistics.data.gov.uk/id/local-authority/12UE,Huntingdonshire District Council,09/06/2017,09/06/2017,211400,,300,FRIENDS OF SUDBURY MEADOW,CR405135,Parks & Open Spaces,Other Services,799
http://statistics.data.gov.uk/id/local-authority/12UE,Huntingdonshire District Council,28/06/2017,29/06/2017,212319,FSI-130813,300,FREEDOM COMMUNICATIONS UK LTD,CR478774,Imd Shared Service,Other I T Hardware,203
http://statistics.data.gov.uk/id/local-authority/12UE,Huntingdonshire District Council,07/06/2017,07/06/2017,612361,REDACTED,300,REDACTED,CR424049,Homelessness Management,Incentive Payment,816
http://statistics.data.gov.uk/id/local-authority/12UE,Huntingdonshire District Council,23/06/2017,23/06/2017,212185,IOSINV012921,299,INSTITUTE OF SWIMMING LTD,CR455603,Human Resources,Training,130
http://statistics.data.gov.uk/id/local-authority/12UE,Huntingdonshire District Council,05/06/2017,05/06/2017,612341,1399,297.2,ST IVES TOWN COUNCIL,CR000701,Bus Stations,Electricity,420
http://statistics.data.gov.uk/id/local-authority/12UE,Huntingdonshire District Council,28/06/2017,29/06/2017,212371,38401,297,MAGNUM TYRES LTD,CR479195,Domestic Refuse,Vehicle Hire,607
http://statistics.data.gov.uk/id/local-authority/12UE,Huntingdonshire District Council,30/06/2017,30/06/2017,212433,17733,294,BIGPRINTING,CR416383,One Leisure St Ives,Advertising/Promoting Services,255
http://statistics.data.gov.uk/id/local-authority/12UE,Huntingdonshire District Council,22/06/2017,22/06/2017,211343,4504,292.5,NOVUS COMPLIANCE SERVICES LTD,CR423524,One Leisure St Ives,Building Mtce,303
http://statistics.data.gov.uk/id/local-authority/12UE,Huntingdonshire District Council,01/06/2017,01/06/2017,210818,6876098,30.63,ANTALIS LTD,CR479468,Document Centre,Paper,562
http://statistics.data.gov.uk/id/local-authority/12UE,Huntingdonshire District Council,01/06/2017,01/06/2017,210818,6876098,259.5,ANTALIS LTD,CR479468,Document Centre,Paper,562
http://statistics.data.gov.uk/id/local-authority/12UE,Huntingdonshire District Council,14/06/2017,14/06/2017,211030,96342225,201.52,TERBERG MATEC UK LTD,CR402183,Domestic Refuse,Vehicle Parts & Fittings,625
http://statistics.data.gov.uk/id/local-authority/12UE,Huntingdonshire District Council,14/06/2017,14/06/2017,211030,96342225,86.36,TERBERG MATEC UK LTD,CR402183,Recycling,Vehicle Parts & Fittings,625
http://statistics.data.gov.uk/id/local-authority/12UE,Huntingdonshire District Council,21/06/2017,22/06/2017,612787,REDACTED,220.82,REDACTED,CR479877,Leisure Centres Capital,Equipment,500
http://statistics.data.gov.uk/id/local-authority/12UE,Huntingdonshire District Council,21/06/2017,22/06/2017,612787,REDACTED,66.62,REDACTED,CR479877,Leisure Centres Capital,Materials,550
http://statistics.data.gov.uk/id/local-authority/12UE,Huntingdonshire District Council,09/06/2017,09/06/2017,211398,4440157,1.35,ESPO,CR006566,Countryside,Stationery,225
http://statistics.data.gov.uk/id/local-authority/12UE,Huntingdonshire District Council,09/06/2017,09/06/2017,211398,4440157,106.2,ESPO,CR006566,Countryside,Equipment,500
http://statistics.data.gov.uk/id/local-authority/12UE,Huntingdonshire District Council,09/06/2017,09/06/2017,211398,4440157,178.65,ESPO,CR006566,Countryside,Materials,550
http://statistics.data.gov.uk/id/local-authority/12UE,Huntingdonshire District Council,12/06/2017,14/06/2017,211336,PSI1701442,284.05,REESINK TURFCARE UK LTD,CR098282,Grounds Maintenance,Vehicle Parts & Fittings,625
http://statistics.data.gov.uk/id/local-authority/12UE,Huntingdonshire District Council,21/06/2017,22/06/2017,209955,3213,284,PRIORY CENTRE,CR001787,Business & Enterprise Support,Hire Of Rooms,411
http://statistics.data.gov.uk/id/local-authority/12UE,Huntingdonshire District Council,01/06/2017,01/06/2017,210771,58001855,283.5,MARSHALL MOTOR GROUP LTD,CR009641,Street Cleaning,Vehicle Parts & Fittings,625
http://statistics.data.gov.uk/id/local-authority/12UE,Huntingdonshire District Council,07/06/2017,07/06/2017,211084,325077,12.52,SOUTH LINCS FOOD SERVICE,CR033415,One Leisure St Ives,Materials,550
http://statistics.data.gov.uk/id/local-authority/12UE,Huntingdonshire District Council,07/06/2017,07/06/2017,211084,325077,22.54,SOUTH LINCS FOOD SERVICE,CR033415,One Leisure St Ives,Bar Provisions,558
http://statistics.data.gov.uk/id/local-authority/12UE,Huntingdonshire District Council,07/06/2017,07/06/2017,211084,325077,246.58,SOUTH LINCS FOOD SERVICE,CR033415,One Leisure St Ives,Catering Materials,559
http://statistics.data.gov.uk/id/local-authority/12UE,Huntingdonshire District Council,22/06/2017,22/06/2017,212172,4405,280.4,NEWLYN PLC,CR409114,Council Tax,Bailiffs,703
http://statistics.data.gov.uk/id/local-authority/12UE,Huntingdonshire District Council,09/06/2017,09/06/2017,211382,2103551108,278.2,BOOKER CASH AND CARRY,CR027611,Countryside,Catering Materials,559
http://statistics.data.gov.uk/id/local-authority/12UE,Huntingdonshire District Council,05/06/2017,05/06/2017,612340,1445,276.95,ST IVES TOWN COUNCIL,CR000701,Bus Stations,Electricity,420
http://statistics.data.gov.uk/id/local-authority/12UE,Huntingdonshire District Council,29/06/2017,29/06/2017,212233,INV087810,273.24,SLUSH PUPPIE LTD,CR455958,One Leisure Sawtry,Vending Materials,560
http://statistics.data.gov.uk/id/local-authority/12UE,Huntingdonshire District Council,30/06/2017,30/06/2017,212613,81810,52.96,SNACKLINE DIRECT LTD,CR478090,One Leisure St Ives,Bar Provisions,558
http://statistics.data.gov.uk/id/local-authority/12UE,Huntingdonshire District Council,30/06/2017,30/06/2017,212613,81810,68.64,SNACKLINE DIRECT LTD,CR478090,One Leisure St Ives,Catering Materials,559
http://statistics.data.gov.uk/id/local-authority/12UE,Huntingdonshire District Council,30/06/2017,30/06/2017,212613,81810,149.34,SNACKLINE DIRECT LTD,CR478090,One Leisure St Ives,Confectionery,572
http://statistics.data.gov.uk/id/local-authority/12UE,Huntingdonshire District Council,14/06/2017,14/06/2017,211512,SI472885-1,270,RLSS DIRECT,CR401615,One Leisure St Ives,Materials,550
http://statistics.data.gov.uk/id/local-authority/12UE,Huntingdonshire District Council,29/06/2017,29/06/2017,212421,UKA_EVNT/63364,90,UKACTIVE,CR003876,One Leisure Corporate Mgt,Consultants,711
http://statistics.data.gov.uk/id/local-authority/12UE,Huntingdonshire District Council,29/06/2017,29/06/2017,212421,UKA_EVNT/63364,45,UKACTIVE,CR003876,One Leisure Ramsey,Consultants,711
http://statistics.data.gov.uk/id/local-authority/12UE,Huntingdonshire District Council,29/06/2017,29/06/2017,212421,UKA_EVNT/63364,45,UKACTIVE,CR003876,One Leisure Sawtry,Consultants,711
http://statistics.data.gov.uk/id/local-authority/12UE,Huntingdonshire District Council,29/06/2017,29/06/2017,212421,UKA_EVNT/63364,90,UKACTIVE,CR003876,One Leisure St Ives,Consultants,711
http://statistics.data.gov.uk/id/local-authority/12UE,Huntingdonshire District Council,14/06/2017,14/06/2017,211613,REFUNDS,266.14,PREMIER GLOBAL LTD,CR424757,One Leisure St Ives,Membership,D99
http://statistics.data.gov.uk/id/local-authority/12UE,Huntingdonshire District Council,07/06/2017,07/06/2017,211070,4452269,5.37,ESPO,CR006566,One Leisure Huntingdon,Stationery,225
http://statistics.data.gov.uk/id/local-authority/12UE,Huntingdonshire District Council,07/06/2017,07/06/2017,211070,4452269,182.68,ESPO,CR006566,One Leisure Huntingdon,Cleaning Materials,443
http://statistics.data.gov.uk/id/local-authority/12UE,Huntingdonshire District Council,07/06/2017,07/06/2017,211070,4452269,47.94,ESPO,CR006566,One Leisure Huntingdon,Equipment,500
http://statistics.data.gov.uk/id/local-authority/12UE,Huntingdonshire District Council,07/06/2017,07/06/2017,211070,4452269,30.05,ESPO,CR006566,One Leisure Huntingdon,Materials,550
http://statistics.data.gov.uk/id/local-authority/12UE,Huntingdonshire District Council,14/06/2017,14/06/2017,211053,2380137,265.54,SHB HIRE LTD,CR416566,Domestic Refuse,Vehicle Hire,607
http://statistics.data.gov.uk/id/local-authority/12UE,Huntingdonshire District Council,27/06/2017,28/06/2017,211986,22632,265,SHOW & EVENT SECURITY,CR422363,One Leisure St Ives,Hired Staff,100
http://statistics.data.gov.uk/id/local-authority/12UE,Huntingdonshire District Council,07/06/2017,07/06/2017,211115,384/742,262.5,JAZ YORKS LTD,CR160753,Homelessness Management,Bed & Breakfast Payment,818
http://statistics.data.gov.uk/id/local-authority/12UE,Huntingdonshire District Council,07/06/2017,07/06/2017,211116,384/745,262.5,JAZ YORKS LTD,CR160753,Homelessness Management,Bed & Breakfast Payment,818
http://statistics.data.gov.uk/id/local-authority/12UE,Huntingdonshire District Council,14/06/2017,14/06/2017,211614,384/748,262.5,JAZ YORKS LTD,CR160753,Homelessness Management,Bed & Breakfast Payment,818
http://statistics.data.gov.uk/id/local-authority/12UE,Huntingdonshire District Council,14/06/2017,14/06/2017,211617,384/751,262.5,JAZ YORKS LTD,CR160753,Homelessness Management,Bed & Breakfast Payment,818
http://statistics.data.gov.uk/id/local-authority/12UE,Huntingdonshire District Council,20/06/2017,20/06/2017,211938,384/757,262.5,JAZ YORKS LTD,CR160753,Homelessness Management,Bed & Breakfast Payment,818
http://statistics.data.gov.uk/id/local-authority/12UE,Huntingdonshire District Council,20/06/2017,20/06/2017,211939,384/754,262.5,JAZ YORKS LTD,CR160753,Homelessness Management,Bed & Breakfast Payment,818
http://statistics.data.gov.uk/id/local-authority/12UE,Huntingdonshire District Council,15/06/2017,15/06/2017,211850,12489088540,260.11,E-ON ENERGY,CR416430,One Leisure St Neots,Gas,421
http://statistics.data.gov.uk/id/local-authority/12UE,Huntingdonshire District Council,22/06/2017,22/06/2017,612981,27-May-17,260,J C FENDICK,CR424737,Markets,Advertising/Promoting Services,255
http://statistics.data.gov.uk/id/local-authority/12UE,Huntingdonshire District Council,07/06/2017,07/06/2017,211074,SIV186937,255.38,LES MILLS UK,CR025826,One Leisure St Ives,Licences,730
http://statistics.data.gov.uk/id/local-authority/12UE,Huntingdonshire District Council,01/06/2017,01/06/2017,209625,6340,255,KYMERA EMBROIDERY & LEISUREWEAR,CR410594,Pathfinder House Site,Protective Clothing & Uniforms,163
http://statistics.data.gov.uk/id/local-authority/12UE,Huntingdonshire District Council,28/06/2017,29/06/2017,212378,274917I,254.27,A C COMMERCIALS,CR000141,Domestic Refuse,Vehicle Parts & Fittings,625
http://statistics.data.gov.uk/id/local-authority/12UE,Huntingdonshire District Council,01/06/2017,01/06/2017,209976,4492,104,NOVUS COMPLIANCE SERVICES LTD,CR423524,Countryside,Plant & Equipment Maintenance,380
http://statistics.data.gov.uk/id/local-authority/12UE,Huntingdonshire District Council,01/06/2017,01/06/2017,209976,4492,149.5,NOVUS COMPLIANCE SERVICES LTD,CR423524,Markets,Building Mtce,303
http://statistics.data.gov.uk/id/local-authority/12UE,Huntingdonshire District Council,14/06/2017,14/06/2017,211422,81010,253.01,SNACKLINE DIRECT LTD,CR478090,Countryside,Catering Materials,559
http://statistics.data.gov.uk/id/local-authority/12UE,Huntingdonshire District Council,22/06/2017,22/06/2017,211636,62238,252,MASKEARAID LTD,CR033423,E F H And Depots,Cleaning Materials,443
http://statistics.data.gov.uk/id/local-authority/12UE,Huntingdonshire District Council,20/06/2017,20/06/2017,211915,2103617322,13.77,BOOKER CASH AND CARRY,CR027611,Countryside,Materials,550
http://statistics.data.gov.uk/id/local-authority/12UE,Huntingdonshire District Council,20/06/2017,20/06/2017,211915,2103617322,67.72,BOOKER CASH AND CARRY,CR027611,Countryside,Materials,550
http://statistics.data.gov.uk/id/local-authority/12UE,Huntingdonshire District Council,20/06/2017,20/06/2017,211915,2103617322,170.37,BOOKER CASH AND CARRY,CR027611,Countryside,Catering Materials,559
http://statistics.data.gov.uk/id/local-authority/12UE,Huntingdonshire District Council,14/06/2017,14/06/2017,211427,8344,250,STARLITE ROADSHOW,CR024127,One Leisure St Ives,Entertainments Inc Cable Tv,744
http://statistics.data.gov.uk/id/local-authority/12UE,Huntingdonshire District Council,14/06/2017,14/06/2017,211509,47985,250,LUCION ENVIRONMENTAL LTD,CR424646,Ol Hdon Changing Facilities,Building Mtce,303
http://statistics.data.gov.uk/id/local-authority/12UE,Huntingdonshire District Council,15/06/2017,20/06/2017,211516,6437673,250,LANDMARK INFORMATION GROUP LIMITED,CR416010,Contaminated Land,Licences,730
http://statistics.data.gov.uk/id/local-authority/12UE,Huntingdonshire District Council,14/06/2017,14/06/2017,211629,159/1617,250,THE TREE COUNCIL,CR400654,Trees,Corporate Subscriptions,754
http://statistics.data.gov.uk/id/local-authority/12UE,Huntingdonshire District Council,09/06/2017,14/06/2017,211352,6497,-303.15,WALKER FIRE UK LTD,CR455756,One Leisure St Neots,Fire & Security,450
http://statistics.data.gov.uk/id/local-authority/12UE,Huntingdonshire District Council,21/06/2017,22/06/2017,211923,CREDIT 79989,-323.2,SNACKLINE DIRECT LTD,CR478090,One Leisure St Neots,Vending Materials,560
http://statistics.data.gov.uk/id/local-authority/12UE,Huntingdonshire District Council,16/06/2017,16/06/2017,211878,24894,-579.8,CAMBRIDGE CITY COUNCIL,CR017896,Central Services M Us,Legal Fees,729
http://statistics.data.gov.uk/id/local-authority/12UE,Huntingdonshire District Council,22/06/2017,22/06/2017,212039,211687030,-729.08,SWALEC,CR407130,One Leisure Sawtry,Electricity,420
http://statistics.data.gov.uk/id/local-authority/12UE,Huntingdonshire District Council,20/06/2017,20/06/2017,211642,1703/9526W,-980.9,GULLIVERS TRUCK HIRE LTD,CR477663,Street Cleaning,Vehicle Hire,607
http://statistics.data.gov.uk/id/local-authority/12UE,Huntingdonshire District Council,28/06/2017,29/06/2017,212350,8003046063,"-1,900.00",CAPITA BUSINESS SERVICES LTD,CR410639,Scdc Recharge Invoices,Hired Staff,100
http://statistics.data.gov.uk/id/local-authority/12UE,Huntingdonshire District Council,15/06/2017,15/06/2017,211686,WN90015970,"-3,375.00",CAPITA RESOURCING LTD,CR030165,Imd Shared Service,Hired Staff,100
http://statistics.data.gov.uk/id/local-authority/12UE,Huntingdonshire District Council,06/06/2017,06/06/2017,211044,2590,"-3,660.00",RVS GROUP LTD,CR480777,Domestic Refuse,Vehicle Hire,607
http://statistics.data.gov.uk/id/local-authority/12UE,Huntingdonshire District Council,16/06/2017,16/06/2017,211879,24893,"-4,112.90",CAMBRIDGE CITY COUNCIL,CR017896,Central Services M Us,Legal Fees,729
http://statistics.data.gov.uk/id/local-authority/12UE,Huntingdonshire District Council,23/06/2017,29/06/2017,212259,SCR001719,"-5,367.87",QUADRANT SECURITY GROUP,CR027775,Cctv Shared Service,Equipment Maintenance,511
